Workbook

Sheet 11.25
A1: 尺组合 | B1: 条码 | C1: 发货后发货仓库存清点 | D1: ERP库存 | E1: 差异 | F1: 最新入库情况 | G1: 出库情况
A2: 直条半蕾丝头套10 | B2: STWLFW10 | C2: 37 | D2: 31 | E2: 6
A3: 直条半蕾丝头套12 | B3: STWLFW12 | C3: 29 | D3: 27 | E3: 2
A4: 直条半蕾丝头套14 | B4: STWLFW14 | C4: 27 | D4: 26 | E4: 1
A5: 直条半蕾丝头套16 | B5: STWLFW16 | C5: 11 | D5: 11 | E5: 0
A6: 直条半蕾丝头套18 | B6: STWLFW18 | C6: 22 | D6: 25 | E6: -3
A7: 直条半蕾丝头套20 | B7: STWLFW20 | C7: 17 | D7: 20 | E7: -3
A8: 直条半蕾丝头套22 | B8: STWLFW22 | C8: 23 | D8: 31 | E8: -8 | F8: 2019/11/23 89/90批入 9 2019-11-02 81批入 10 | G8: 21
A9: 直条半蕾丝头套24 | B9: STWLFW24 | C9: 15 | D9: 16 | E9: -1
A10: 直条半蕾丝头套26 | B10: STWLFW26 | C10: 4 | D10: 4 | E10: 0
A11: 直条半蕾丝头套28 | B11: STWLFW28 | C11: 0 | D11: 0 | E11: 0
A12: 直条半蕾丝头套30 | B12: STWLFW30 | C12: 0 | D12: 0 | E12: 0
A13: BODY半蕾丝头套10 | B13: BWLFW10 | C13: 5 | D13: 8 | E13: -3
A14: BODY半蕾丝头套12 | B14: BWLFW12 | C14: 14 | D14: 14 | E14: 0
A15: BODY半蕾丝头套14 | B15: BWLFW14 | C15: 15 | D15: 12 | E15: 3
A16: BODY半蕾丝头套16 | B16: BWLFW16 | C16: 19 | D16: 18 | E16: 1
A17: BODY半蕾丝头套18 | B17: BWLFW18 | C17: 64 | D17: 65 | E17: -1
A18: BODY半蕾丝头套20 | B18: BWLFW20 | C18: 44 | D18: 46 | E18: -2
A19: BODY半蕾丝头套22 | B19: BWLFW22 | C19: 22 | D19: 22 | E19: 0
A20: BODY半蕾丝头套24 | B20: BWLFW24 | C20: 9 | D20: 8 | E20: 1
A21: DEEP半蕾丝头套10 | B21: DEEPLFW10 | C21: 0 | D21: 4 | E21: -4 | F21: 2019-11-08 82批入 5 2019-10-19 76批入 5 | G21: 4
A22: DEEP半蕾丝头套12 | B22: DEEPLFW12 | C22: 1 | D22: 5 | E22: -4 | F22: 2019-10-30 79/80批入 5 2019-10-26 77/78批入 5 | G22: 4
A23: DEEP半蕾丝头套14 | B23: DEEPLFW14 | C23: 14 | D23: 14 | E23: 0
A24: DEEP半蕾丝头套16 | B24: DEEPLFW16 | C24: 22 | D24: 23 | E24: -1
A25: DEEP半蕾丝头套18 | B25: DEEPLFW18 | C25: 1 | D25: 0 | E25: 1
A26: DEEP半蕾丝头套20 | B26: DEEPLFW20 | C26: 0 | D26: 0 | E26: 0
A27: DEEP半蕾丝头套22 | B27: DEEPLFW22 | C27: 9 | D27: 10 | E27: -1
A28: DEEP半蕾丝头套24 | B28: DEEPLFW24 | C28: 0 | D28: 0 | E28: 0
A29: DEEP半蕾丝头套26 | B29: DEEPLFW26 | C29: 0 | D29: 0 | E29: 0
A30: LOOSEDEEP半蕾丝头套10 | B30: LSDPLFW10 | C30: 9 | D30: 10 | E30: -1
A31: LOOSEDEEP半蕾丝头套12 | B31: LSDPLFW12 | C31: 8 | D31: 9 | E31: -1
A32: LOOSEDEEP半蕾丝头套14 | B32: LSDPLFW14 | C32: 0 | D32: 1 | E32: -1
A33: LOOSEDEEP半蕾丝头套16 | B33: LSDPLFW16 | C33: 0 | D33: 0 | E33: 0
A34: LOOSEDEEP半蕾丝头套18 | B34: LSDPLFW18 | C34: 7 | D34: 5 | E34: 2
A35: LOOSEDEEP半蕾丝头套20 | B35: LSDPLFW20 | C35: 0 | D35: 0 | E35: 0
A36: LOOSEDEEP半蕾丝头套22 | B36: LSDPLFW22 | C36: 4 | D36: 4 | E36: 0
A37: LOOSEDEEP半蕾丝头套24 | B37: LSDPLFW24 | C37: 7 | D37: 6 | E37: 1
A38: JC半蕾丝头套12 | B38: CURLYLFW12 | C38: 12 | D38: 11 | E38: 1
A39: JC半蕾丝头套14 | B39: CURLYLFW14 | C39: 22 | D39: 27 | E39: -5
A40: JC半蕾丝头套16 | B40: CURLYLFW16 | C40: 11 | D40: 13 | E40: -2
A41: JC半蕾丝头套18 | B41: CURLYLFW18 | C41: 20 | D41: 20 | E41: 0
A42: JC半蕾丝头套20 | B42: CURLYLFW20 | C42: 17 | D42: 16 | E42: 1
A43: JC半蕾丝头套22 | B43: CURLYLFW22 | C43: 16 | D43: 16 | E43: 0
A44: JC半蕾丝头套24 | B44: CURLYLFW24 | C44: 9 | D44: 10 | E44: -1
A45: JC半蕾丝头套26 | B45: CURLYLFW26 | C45: 0 | D45: 0 | E45: 0
A46: 自然曲半蕾丝头套10 | B46: WATERLFW10 | C46: 10 | D46: 5 | E46: 5 | F46: 2019-11-14 83/84批入 5 | G46: 0
A47: 自然曲半蕾丝头套12 | B47: WATERLFW12 | C47: 8 | D47: 7 | E47: 1
A48: 自然曲半蕾丝头套14 | B48: WATERLFW14 | C48: 8 | D48: 4 | E48: 4 | F48: 2019-11-20 86/87批入 5 2019-10-02 71批入 5 | G48: 5
A49: 自然曲半蕾丝头套16 | B49: WATERLFW16 | C49: 9 | D49: 13 | E49: -4 | F49: 2019-10-29 77/78批入 10 2019-10-18 美仓盘点差异入 4 | G49: 0
A50: 自然曲半蕾丝头套18 | B50: WATERLFW18 | C50: 5 | D50: 7 | E50: -2
A51: 自然曲半蕾丝头套20 | B51: WATERLFW20 | C51: 0 | D51: 17 | E51: -17 | F51: 2019-10-26 77/78批入 5 2019-10-18 美仓盘点差异入 15 2019-10-02 71批入 5 | G51: 12
A52: 自然曲半蕾丝头套22 | B52: WATERLFW22 | C52: 2 | D52: 4 | E52: -2
A53: 613BODY半蕾丝头套12 | B53: 613BWLFW12 | C53: 0 | D53: 0 | E53: 0
A54: 613BODY半蕾丝头套14 | B54: 613BWLFW14 | C54: 13 | D54: 13 | E54: 0
A55: 613BODY半蕾丝头套16 | B55: 613BWLFW16 | C55: 11 | D55: 11 | E55: 0
A56: 613BODY半蕾丝头套18 | B56: 613BWLFW18 | C56: 12 | D56: 13 | E56: -1
A57: 613BODY半蕾丝头套20 | B57: 613BWLFW20 | C57: 13 | D57: 13 | E57: 0
A58: 613BODY半蕾丝头套22 | B58: 613BWLFW22 | C58: 20 | D58: 20 | E58: 0
A59: 613直发半蕾丝头套12 | B59: 613STWLFW12 | C59: 4 | D59: 12 | E59: -8 | F59: 2019-11-23 89/90批入 5 2019-10-19 75/75批入 10 | G59: 11
A60: 613直发半蕾丝头套14 | B60: 613STWLFW14 | C60: 9 | D60: 12 | E60: -3
A61: 613直发半蕾丝头套16 | B61: 613STWLFW16 | C61: 16 | D61: 12 | E61: 4
A62: 613直发半蕾丝头套18 | B62: 613STWLFW18 | C62: 19 | D62: 19 | E62: 0
A63: 613直发半蕾丝头套20 | B63: 613STWLFW20 | C63: 22 | D63: 22 | E63: 0
A64: 613直条半蕾丝头套22 | B64: 613STWLFW22 | C64: 19 | D64: 19 | E64: 0
A65: 99JBODY半蕾丝头套12 | B65: 99JBWLFW12 | C65: 9 | D65: 9 | E65: 0
A66: 99JBODY半蕾丝头套14 | B66: 99JBWLFW14 | C66: 8 | D66: 9 | E66: -1
A67: 99JBODY半蕾丝头套16 | B67: 99JBWLFW16 | C67: 17 | D67: 27 | E67: -10 | F67: 2019-11-16 83/84/85批入 10 2019-11-08 82批入 10 2019-10-30 79/80批入 5 | G67: 3
A68: 99JBODY半蕾丝头套18 | B68: 99JBWLFW18 | C68: 12 | D68: 23 | E68: -11 | F68: 2019-11-16 83/84/85批入 10 2019-11-08 82批入 5 2019-11-02 81批入 10 | G68: 12
A69: 99JBODY半蕾丝头套20 | B69: 99JBWLFW20 | C69: 6 | D69: 16 | E69: -10 | F69: 2019-11-20 86/87批入 10 2019-11-16 83/84/85批入 3 2019-11-15 83/84/85批入 10 | G69: 7
A70: 99JBODY半蕾丝头套22 | B70: 99JBWLFW22 | C70: 9 | D70: 18 | E70: -9 | F70: 2019-11-20 86/87批入 10 2019-11-15 83/84/85批入 9 | G70: 1
A71: 99J直发半蕾丝头套10 | B71: 99JSTWLFW10 | C71: 0 | D71: 0 | E71: 0
A72: 99J直发半蕾丝头套12 | B72: 99JSTWLFW12 | C72: 0 | D72: 0 | E72: 0
A73: 99J直发半蕾丝头套14 | B73: 99JSTWLFW14 | C73: 6 | D73: 5 | E73: 1
A74: 99J直发半蕾丝头套16 | B74: 99JSTWLFW16 | C74: 6 | D74: 6 | E74: 0
A75: 99J直条半蕾丝头套18 | B75: 99JSTWLFW18 | C75: 7 | D75: 7 | E75: 0
A76: 99J直条半蕾丝头套20 | B76: 99JSTWLFW20 | C76: 18 | D76: 9 | E76: 9
A77: 99J直条半蕾丝头套22 | B77: 99JSTWLFW22 | C77: 13 | D77: 3 | E77: 10 | F77: 2019-11-20 86/87批入 10 2019-11-15 83/84/85批入 8 | G77: 15
E78: =SUM(E2:E77) -> -66

Sheet 11.25待再次核实
A1: 尺组合 | B1: 条码 | C1: 发货后发货仓库存清点 | D1: ERP库存 | E1: 差异 | F1: 最新入库情况 | G1: 出库情况 | H1: 11.26日发货后的库存 | I1: ERP库存 | J1: 差异
A2: 直条半蕾丝头套22 | B2: STWLFW22 | C2: 23 | D2: 31 | E2: -8 | F2: 2019/11/23 89/90批入 9 2019-11-02 81批入 10 | G2: 21 | H2: 14 | I2: 30 | J2: =H2-I2 -> -16
A3: DEEP半蕾丝头套10 | B3: DEEPLFW10 | C3: 0 | D3: 4 | E3: -4 | F3: 2019-11-08 82批入 5 2019-10-19 76批入 5 | G3: 4 | H3: 0 | I3: 4 | J3: =H3-I3 -> -4
A4: DEEP半蕾丝头套12 | B4: DEEPLFW12 | C4: 1 | D4: 5 | E4: -4 | F4: 2019-10-30 79/80批入 5 2019-10-26 77/78批入 5 | G4: 4 | H4: 0 | I4: 4 | J4: -4
A5: 自然曲半蕾丝头套10 | B5: WATERLFW10 | C5: 10 | D5: 5 | E5: 5 | F5: 2019-11-14 83/84批入 5 | G5: 0 | H5: 10 | I5: 5 | J5: 5
A6: 自然曲半蕾丝头套14 | B6: WATERLFW14 | C6: 8 | D6: 4 | E6: 4 | F6: 2019-11-20 86/87批入 5 2019-10-02 71批入 5 | G6: 5 | H6: 7 | I6: 4 | J6: 3
A7: 自然曲半蕾丝头套16 | B7: WATERLFW16 | C7: 9 | D7: 13 | E7: -4 | F7: 2019-10-29 77/78批入 10 2019-10-18 美仓盘点差异入 4 | G7: 0 | H7: 9 | I7: 13 | J7: -4
A8: 自然曲半蕾丝头套20 | B8: WATERLFW20 | C8: 0 | D8: 17 | E8: -17 | F8: 2019-10-26 77/78批入 5 2019-10-18 美仓盘点差异入 15 2019-10-02 71批入 5 | G8: 12 | H8: 0 | I8: 17 | J8: -17
A9: 613直发半蕾丝头套12 | B9: 613STWLFW12 | C9: 4 | D9: 12 | E9: -8 | F9: 2019-11-23 89/90批入 5 2019-10-19 75/75批入 10 | G9: 11 | H9: 10 | I9: 12 | J9: -2
A10: 99JBODY半蕾丝头套16 | B10: 99JBWLFW16 | C10: 17 | D10: 27 | E10: -10 | F10: 2019-11-16 83/84/85批入 10 2019-11-08 82批入 10 2019-10-30 79/80批入 5 | G10: 3 | H10: 27 | I10: 27 | J10: 0
A11: 99JBODY半蕾丝头套18 | B11: 99JBWLFW18 | C11: 12 | D11: 23 | E11: -11 | F11: 2019-11-16 83/84/85批入 10 2019-11-08 82批入 5 2019-11-02 81批入 10 | G11: 12 | H11: 22 | I11: 23 | J11: -1
A12: 99JBODY半蕾丝头套20 | B12: 99JBWLFW20 | C12: 6 | D12: 16 | E12: -10 | F12: 2019-11-20 86/87批入 10 2019-11-16 83/84/85批入 3 2019-11-15 83/84/85批入 10 | G12: 7 | H12: 16 | I12: 16 | J12: 0
A13: 99JBODY半蕾丝头套22 | B13: 99JBWLFW22 | C13: 9 | D13: 18 | E13: -9 | F13: 2019-11-20 86/87批入 10 2019-11-15 83/84/85批入 9 | G13: 1 | H13: 18 | I13: 17 | J13: 1
A14: 99J直条半蕾丝头套22 | B14: 99JSTWLFW22 | C14: 13 | D14: 3 | E14: 10 | F14: 2019-11-20 86/87批入 10 2019-11-15 83/84/85批入 8 | G14: 15 | H14: 3 | I14: 3 | J14: 0

Sheet 11.26
A1: 尺组合 | B1: 条码 | C1: 发货后发货仓库存清点 | D1: ERP库存 | E1: 差异 | F1: 入库情况
A2: 613直发BOB头套8 | B2: 613STWBOB8 | C2: 34 | D2: 32 | E2: =C2-D2 -> 2
A3: 613直发BOB头套10 | B3: 613STWBOB10 | C3: 223 | D3: 223 | E3: =C3-D3 -> 0
A4: 613直发BOB头套12 | B4: 613STWBOB12 | C4: 25 | D4: 31 | E4: -6
A5: 613直发BOB头套14 | B5: 613STWBOB14 | C5: 39 | D5: 42 | E5: -3
A6: 613直发4*4BOB头套8 | B6: 613STW4*4BOB8 | C6: 未清点 | D6: 184
A7: 613直发4*4BOB头套10 | B7: 613STW4*4BOB10 | C7: 未清点 | D7: 49
A8: 99J直发Bob头头套8 | B8: 99JSTWBOB8 | C8: 27 | D8: 27 | E8: 0
A9: 99J直发Bob头头套10 | B9: 99JSTWBOB10 | C9: 24 | D9: 23 | E9: 1
A10: 99J直发Bob头头套12 | B10: 99JSTWBOB12 | C10: 25 | D10: 24 | E10: 1
A11: 99J直发Bob头头套14 | B11: 99JSTWBOB14 | C11: 19 | D11: 20 | E11: -1
A12: #27直条BOB头8 | B12: #27STWBOB8 | C12: 15 | D12: 14 | E12: 1
A13: #27直条BOB头10 | B13: #27STWBOB10 | C13: 13 | D13: 12 | E13: 1
A14: #27直条BOB头12 | B14: #27STWBOB12 | C14: 5 | D14: 5 | E14: 0
A15: #27直条BOB头14 | B15: #27STWBOB14 | C15: 12 | D15: 12 | E15: 0
A16: 直条Bob头8 | B16: STWBOB8 | C16: 40 | D16: 31 | E16: 9
A17: 直条Bob头10 | B17: STWBOB10 | C17: 81 | D17: 54 | E17: 27 | F17: 2019-11-23 89/90批入库 40 2019-11-02 81批入库 20
A18: 直条Bob头12 | B18: STWBOB12 | C18: 62 | D18: 42 | E18: 20 | F18: 2019-11-23 89/90批入库 30 2019-11-20 86/87批入库 30
A19: 直条Bob头14 | B19: STWBOB14 | C19: 31 | D19: 32 | E19: -1
A20: BODYBOB头8 | B20: BWBOB8 | C20: 7 | D20: 7 | E20: 0
A21: BODYBOB头10 | B21: BWBOB10 | C21: 14 | D21: 10 | E21: 4
A22: BODYBOB头12 | B22: BWBOB12 | C22: 4 | D22: 6 | E22: -2
A23: BODYBOB头14 | B23: BWBOB14 | C23: 8 | D23: 11 | E23: -3
A24: JCBob头8 | B24: JCBOB8 | C24: 29 | D24: 26 | E24: 3
A25: JCBob头10 | B25: JCBOB10 | C25: 36 | D25: 39 | E25: -3
A26: JCBob头12 | B26: JCBOB12 | C26: 1 | D26: 1 | E26: 0
A27: JCBob头14 | B27: JCBOB14 | C27: 18 | D27: 15 | E27: 3
A28: DEEPBOB头8 | B28: DEEPBOB8 | C28: 8 | D28: 9 | E28: -1
A29: DEEPBOB头10 | B29: DEEPBOB10 | C29: 38 | D29: 27 | E29: 11 | F29: 2019-11-23 89/90批入库 20 2019-11-20 86/87批入库10
A30: DEEPBOB头12 | B30: DEEPBOB12 | C30: 1 | D30: 0 | E30: 1
A31: DEEPBOB头14 | B31: DEEPBOB14 | C31: 0 | D31: 0 | E31: 0
A32: 自然曲BOB头8 | B32: WATERBOB8 | C32: 9 | D32: 10 | E32: -1
A33: 自然曲BOB头10 | B33: WATERBOB10 | C33: 13 | D33: 13 | E33: 0
A34: 自然曲BOB头12 | B34: WATERBOB12 | C34: 0 | D34: 0 | E34: 0
A35: 自然曲BOB头14 | B35: WATERBOB14 | C35: 0 | D35: 0 | E35: =C35-D35 -> 0
A36: 齐刘海直条BOB头8 | B36: BBSTWBOB8 | C36: 20 | D36: 20 | E36: 0
A37: 齐刘海直条BOB头10 | B37: BBSTWBOB10 | C37: 17 | D37: 18 | E37: -1
A38: 齐刘海直条BOB头12 | B38: BBSTWBOB12 | C38: 15 | D38: 18 | E38: -3
A39: 齐刘海直条BOB头14 | B39: BBSTWBOB14 | C39: 3 | D39: 16 | E39: -13 | F39: 8月入5 9月入4
A40: 直条360头套10 | B40: STW360WIG10 | C40: 3 | D40: 3 | E40: 0
A41: 直条360头套12 | B41: STW360WIG12 | C41: 3 | D41: 3 | E41: 0
A42: 直条360头套14 | B42: STW360WIG14 | C42: 5 | D42: 5 | E42: 0
A43: 直条360头套16 | B43: STW360WIG16 | C43: 4 | D43: 4 | E43: 0
A44: 直条360头套18 | B44: STW360WIG18 | C44: 8 | D44: 8 | E44: 0
A45: 直条360头套20 | B45: STW360WIG20 | C45: 10 | D45: 10 | E45: 0
A46: 直条360头套22 | B46: STW360WIG22 | C46: 9 | D46: 9 | E46: 0
A47: 直条360头套24 | B47: STW360WIG24 | C47: 10 | D47: 10 | E47: 0
A48: BODY360头套10 | B48: BW360WIG10 | C48: 14 | D48: 14 | E48: 0
A49: BODY360头套12 | B49: BW360WIG12 | C49: 17 | D49: 18 | E49: -1
A50: BODY360头套14 | B50: BW360WIG14 | C50: 14 | D50: 14 | E50: 0
A51: BODY360头套16 | B51: BW360WIG16 | C51: 13 | D51: 12 | E51: 1
A52: BODY360头套18 | B52: BW360WIG18 | C52: 14 | D52: 16 | E52: -2
A53: BODY360头套20 | B53: BW360WIG20 | C53: 2 | D53: 4 | E53: -2
A54: BODY360头套22 | B54: BW360WIG22 | C54: 16 | D54: 19 | E54: -3
A55: BODY360头套24 | B55: BW360WIG24 | C55: 6 | D55: 6 | E55: 0
A56: JC360头套16 | B56: JC360WIG16 | C56: 未清点 | D56: 10
A57: JC360头套18 | B57: JC360WIG18 | C57: 未清点 | D57: 10
A58: JC360头套20 | B58: JC360WIG20 | C58: 未清点 | D58: 10
A59: JC360头套22 | B59: JC360WIG22 | C59: 未清点 | D59: 7
A60: JC360头套24 | B60: JC360WIG24 | C60: 未清点 | D60: 15
A61: 直条4*4头套12 | B61: STW4*4WIG12 | C61: 未清点 | D61: 5
A62: 直条4*4头套14 | B62: STW4*4WIG14 | C62: 未清点 | D62: 5
A63: 直条4*4头套16 | B63: STW4*4WIG16 | C63: 未清点 | D63: 3
A64: 直条4*4头套18 | B64: STW4*4WIG18 | C64: 未清点 | D64: 4
A65: 直条4*4头套20 | B65: STW4*4WIG20 | C65: 未清点 | D65: 6
A66: 直条4*4头套22 | B66: STW4*4WIG22 | C66: 未清点 | D66: 3
A67: 直条4*4头套24 | B67: STW4*4WIG24 | C67: 未清点 | D67: 4
A68: BODY4*4头套12 | B68: BW4*4WIG12 | C68: 4 | D68: 2 | E68: =C68-D68 -> 2
A69: BODY4*4头套14 | B69: BW4*4WIG14 | C69: 11 | D69: 9 | E69: 2
A70: BODY4*4头套16 | B70: BW4*4WIG16 | C70: 7 | D70: 6 | E70: 1
A71: BODY4*4头套18 | B71: BW4*4WIG18 | C71: 5 | D71: 3 | E71: 2
A72: BODY4*4头套20 | B72: BW4*4WIG20 | C72: 4 | D72: 3 | E72: 1
A73: BODY4*4头套22 | B73: BW4*4WIG22 | C73: 5 | D73: 5 | E73: 0
A74: BODY4*4头套24 | B74: BW4*4WIG24 | C74: 6 | D74: 6 | E74: 0
A75: DEEP4*4头套12 | B75: DEEP4*4WIG12 | C75: 2 | D75: 2 | E75: 0
A76: DEEP4*4头套14 | B76: DEEP4*4WIG14 | C76: 4 | D76: 3 | E76: 1
A77: DEEP4*4头套16 | B77: DEEP4*4WIG16 | C77: 2 | D77: 1 | E77: 1
A78: DEEP4*4头套18 | B78: DEEP4*4WIG18 | C78: 0 | D78: 0 | E78: 0
A79: DEEP4*4头套20 | B79: DEEP4*4WIG20 | C79: 7 | D79: 5 | E79: 2
A80: DEEP4*4头套22 | B80: DEEP4*4WIG22 | C80: 5 | D80: 6 | E80: -1
A81: 自然曲4*4头套12 | B81: WATER4*4WIG12 | C81: 未清点 | D81: 1
A82: 直条6*6头套10 | B82: STW6*6LFW10 | C82: 未清点 | D82: 7
A83: 直条6*6头套12 | B83: STW6*6LFW12 | C83: 未清点 | D83: 6
A84: 直条6*6头套14 | B84: STW6*6LFW14 | C84: 未清点 | D84: 11
A85: 直条6*6头套16 | B85: STW6*6LFW16 | C85: 未清点 | D85: 7
A86: 直条6*6头套18 | B86: STW6*6LFW18 | C86: 未清点 | D86: 24
A87: 直条6*6头套20 | B87: STW6*6LFW20 | C87: 未清点 | D87: 7
A88: 直条6*6头套22 | B88: STW6*6LFW22 | C88: 未清点 | D88: 5
A89: 直条6*6头套24 | B89: STW6*6LFW24 | C89: 未清点 | D89: 6
A90: BODY6*6头套12 | B90: BW6*6LFW12 | C90: 7 | D90: 7 | E90: 0
A91: BODY6*6头套14 | B91: BW6*6LFW14 | C91: 20 | D91: 19 | E91: 1
A92: BODY6*6头套16 | B92: BW6*6LFW16 | C92: 18 | D92: 18 | E92: 0
A93: BODY6*6头套18 | B93: BW6*6LFW18 | C93: 1 | D93: 0 | E93: 1
A94: BODY6*6头套20 | B94: BW6*6LFW20 | C94: 16 | D94: 15 | E94: 1
A95: BODY6*6头套22 | B95: BW6*6LFW22 | C95: 14 | D95: 14 | E95: 0
A96: BODY6*6头套24 | B96: BW6*6LFW24 | C96: 4 | D96: 4 | E96: 0
A97: DEEP6*6头套12 | B97: DEEP6*6LFW12 | C97: 11 | D97: 11 | E97: 0
A98: DEEP6*6头套14 | B98: DEEP6*6LFW14 | C98: 11 | D98: 10 | E98: 1
A99: DEEP6*6头套16 | B99: DEEP6*6LFW16 | C99: 23 | D99: 24 | E99: -1
A100: DEEP6*6头套18 | B100: DEEP6*6LFW18 | C100: 4 | D100: 4 | E100: 0
A101: DEEP6*6头套20 | B101: DEEP6*6LFW20 | C101: 7 | D101: 4 | E101: 3
A102: DEEP6*6头套22 | B102: DEEP6*6LFW22 | C102: 5 | D102: 4 | E102: 1
A103: DEEP6*6头套24 | B103: DEEP6*6LFW24 | C103: 8 | D103: 4 | E103: 4
A104: LOOSEDEEP6*6头套14 | B104: LSDP6*6LFW14 | C104: 未清点 | D104: 0
A105: LOOSEDEEP6*6头套16 | B105: LSDP6*6LFW16 | C105: 未清点 | D105: 4
A106: LOOSEDEEP6*6头套18 | B106: LSDP6*6LFW18 | C106: 未清点 | D106: 0
A107: LOOSEDEEP6*6头套20 | B107: LSDP6*6LFW20 | C107: 未清点 | D107: 0
A108: LOOSEDEEP6*6头套22 | B108: LSDP6*6LFW22 | C108: 未清点 | D108: 5
A109: LOOSEDEEP6*6头套24 | B109: LSDP6*6LFW24 | C109: 未清点 | D109: 0
A110: 透明蕾丝BODY半蕾丝头套8 | B110: TRBWLFW8 | C110: 1 | D110: 3 | E110: =C110-D110 -> -2
A111: 透明蕾丝BODY半蕾丝头套10 | B111: TRBWLFW10 | C111: 7 | D111: 7 | E111: 0
A112: 透明蕾丝BODY半蕾丝头套12 | B112: TRBWLFW12 | C112: 11 | D112: 11 | E112: 0
A113: 透明蕾丝BODY半蕾丝头套14 | B113: TRBWLFW14 | C113: 1 | D113: 2 | E113: -1
A114: 透明蕾丝BODY半蕾丝头套16 | B114: TRBWLFW16 | C114: 12 | D114: 11 | E114: 1
A115: 透明蕾丝BODY半蕾丝头套18 | B115: TRBWLFW18 | C115: 16 | D115: 16 | E115: 0
A116: 透明蕾丝BODY半蕾丝头套20 | B116: TRBWLFW20 | C116: 14 | D116: 13 | E116: 1
A117: 透明蕾丝BODY半蕾丝头套22 | B117: TRBWLFW22 | C117: 14 | D117: 18 | E117: -4
A118: 透明蕾丝BODY半蕾丝头套24 | B118: TRBWLFW24 | C118: 未清点 | D118: 0
A119: 透明蕾丝BODY半蕾丝头套26 | B119: TRBWLFW26 | C119: 未清点 | D119: 10
A120: 透明蕾丝JC半蕾丝头套12 | B120: TRJCLFW12 | C120: 未清点 | D120: 9
A121: 透明蕾丝JC半蕾丝头套14 | B121: TRJCLFW14 | C121: 5 | D121: 9 | E121: =C121-D121 -> -4
A122: 透明蕾丝JC半蕾丝头套16 | B122: TRJCLFW16 | C122: 未清点 | D122: 12
A123: 透明蕾丝JC半蕾丝头套18 | B123: TRJCLFW18 | C123: 未清点 | D123: 0
A124: 透明蕾丝JC半蕾丝头套20 | B124: TRJCLFW20 | C124: 未清点 | D124: 6
A125: 透明蕾丝JC半蕾丝头套22 | B125: TRJCLFW22 | C125: 未清点 | D125: 5
A126: 透明蕾丝JC半蕾丝头套24 | B126: TRJCLFW24 | C126: 未清点 | D126: 0
A127: 透明蕾丝直发半蕾丝头套12 | B127: TRSTWLFW12 | C127: 未清点 | D127: 1
A128: 透明蕾丝直发半蕾丝头套14 | B128: TRSTWLFW14 | C128: 未清点 | D128: 8
A129: 透明蕾丝直发半蕾丝头套16 | B129: TRSTWLFW16 | C129: 未清点 | D129: 16
A130: 透明蕾丝直发半蕾丝头套18 | B130: TRSTWLFW18 | C130: 未清点 | D130: 21
A131: 透明蕾丝直发半蕾丝头套20 | B131: TRSTWLFW20 | C131: 未清点 | D131: 26
A132: 透明蕾丝直发半蕾丝头套22 | B132: TRSTWLFW22 | C132: 未清点 | D132: 20
A133: 透明蕾丝直发半蕾丝头套24 | B133: TRSTWLFW24 | C133: 未清点 | D133: 6
A134: 透明蕾丝直发半蕾丝头套26 | B134: TRSTWLFW26 | C134: 未清点 | D134: 14
A135: 透明蕾丝直发半蕾丝头套28 | B135: TRSTWLFW28 | C135: 未清点 | D135: 5
A136: 透明蕾丝直发半蕾丝头套30 | B136: TRSTWLFW30 | C136: 未清点 | D136: 8
A137: 透明蕾丝自然曲半蕾丝头套14 | B137: TRWATERLFW14 | C137: 未清点 | D137: 0
A138: 透明蕾丝 自然曲半蕾丝头套16 | B138: TRWATERLFW16 | C138: 10 | D138: 5 | E138: =C138-D138 -> 5
A139: 透明蕾丝 自然曲半蕾丝头套18 | B139: TRWATERLFW18 | C139: 未清点 | D139: 5
A140: 透明蕾丝 自然曲半蕾丝头套20 | B140: TRWATERLFW20 | C140: 未清点 | D140: 0
A141: 透明蕾丝 自然曲半蕾丝头套22 | B141: TRWATERLFW22 | C141: 未清点 | D141: 0
A142: kinkycurly半蕾丝头套8 | B142: KCLFW8 | C142: 3 | D142: 3 | E142: =C142-D142 -> 0
A143: kinkycurly半蕾丝头套10 | B143: KCLFW10 | C143: 3 | D143: 3 | E143: =C143-D143 -> 0

Sheet 11.28调整入库
A1: 尺组合 | B1: 条码 | C1: 数量 | E1: 尺组合 | F1: 条码 | G1: 数量
A2: 直条半蕾丝头套10 | B2: STWLFW10 | C2: 6 | E2: 直条半蕾丝头套18 | F2: STWLFW18 | G2: -3
A3: 直条半蕾丝头套12 | B3: STWLFW12 | C3: 2 | E3: 直条半蕾丝头套20 | F3: STWLFW20 | G3: -3
A4: 直条半蕾丝头套14 | B4: STWLFW14 | C4: 1 | E4: 直条半蕾丝头套24 | F4: STWLFW24 | G4: -1
A5: BODY半蕾丝头套14 | B5: BWLFW14 | C5: 3 | E5: BODY半蕾丝头套10 | F5: BWLFW10 | G5: -3
A6: BODY半蕾丝头套16 | B6: BWLFW16 | C6: 1 | E6: BODY半蕾丝头套18 | F6: BWLFW18 | G6: -1
A7: BODY半蕾丝头套24 | B7: BWLFW24 | C7: 1 | E7: BODY半蕾丝头套20 | F7: BWLFW20 | G7: -2
A8: DEEP半蕾丝头套18 | B8: DEEPLFW18 | C8: 1 | E8: DEEP半蕾丝头套16 | F8: DEEPLFW16 | G8: -1
A9: LOOSEDEEP半蕾丝头套18 | B9: LSDPLFW18 | C9: 2 | E9: DEEP半蕾丝头套22 | F9: DEEPLFW22 | G9: -1
A10: LOOSEDEEP半蕾丝头套24 | B10: LSDPLFW24 | C10: 1 | E10: LOOSEDEEP半蕾丝头套10 | F10: LSDPLFW10 | G10: -1
A11: JC半蕾丝头套12 | B11: CURLYLFW12 | C11: 1 | E11: LOOSEDEEP半蕾丝头套12 | F11: LSDPLFW12 | G11: -1
A12: JC半蕾丝头套20 | B12: CURLYLFW20 | C12: 1 | E12: LOOSEDEEP半蕾丝头套14 | F12: LSDPLFW14 | G12: -1
A13: 自然曲半蕾丝头套12 | B13: WATERLFW12 | C13: 1 | E13: JC半蕾丝头套14 | F13: CURLYLFW14 | G13: -5
A14: 613直发半蕾丝头套16 | B14: 613STWLFW16 | C14: 4 | E14: JC半蕾丝头套16 | F14: CURLYLFW16 | G14: -2
A15: 99J直发半蕾丝头套14 | B15: 99JSTWLFW14 | C15: 1 | E15: JC半蕾丝头套24 | F15: CURLYLFW24 | G15: -1
A16: 99J直条半蕾丝头套20 | B16: 99JSTWLFW20 | C16: 9 | E16: 自然曲半蕾丝头套18 | F16: WATERLFW18 | G16: -2
A17: 自然曲半蕾丝头套10 | B17: WATERLFW10 | C17: 5 | E17: 自然曲半蕾丝头套22 | F17: WATERLFW22 | G17: -2
A18: 自然曲半蕾丝头套14 | B18: WATERLFW14 | C18: 3 | E18: 613BODY半蕾丝头套18 | F18: 613BWLFW18 | G18: -1
A19: 99JBODY半蕾丝头套22 | B19: 99JBWLFW22 | C19: 1 | E19: 613直发半蕾丝头套14 | F19: 613STWLFW14 | G19: -3
A20: 613直发BOB头套8 | B20: 613STWBOB8 | C20: 2 | E20: 99JBODY半蕾丝头套14 | F20: 99JBWLFW14 | G20: -1
A21: 99J直发Bob头头套10 | B21: 99JSTWBOB10 | C21: 1 | E21: 直条半蕾丝头套22 | F21: STWLFW22 | G21: -16
A22: 99J直发Bob头头套12 | B22: 99JSTWBOB12 | C22: 1 | E22: DEEP半蕾丝头套10 | F22: DEEPLFW10 | G22: -4
A23: #27直条BOB头8 | B23: #27STWBOB8 | C23: 1 | E23: DEEP半蕾丝头套12 | F23: DEEPLFW12 | G23: -4
A24: #27直条BOB头10 | B24: #27STWBOB10 | C24: 1 | E24: 自然曲半蕾丝头套16 | F24: WATERLFW16 | G24: -4
A25: 直条Bob头8 | B25: STWBOB8 | C25: 9 | E25: 自然曲半蕾丝头套20 | F25: WATERLFW20 | G25: -17
A26: BODYBOB头10 | B26: BWBOB10 | C26: 4 | E26: 613直发半蕾丝头套12 | F26: 613STWLFW12 | G26: -2
A27: JCBob头8 | B27: JCBOB8 | C27: 3 | E27: 99JBODY半蕾丝头套18 | F27: 99JBWLFW18 | G27: -1
A28: JCBob头14 | B28: JCBOB14 | C28: 3 | E28: 613直发BOB头套12 | F28: 613STWBOB12 | G28: -6
A29: DEEPBOB头12 | B29: DEEPBOB12 | C29: 1 | E29: 613直发BOB头套14 | F29: 613STWBOB14 | G29: -3
A30: BODY360头套16 | B30: BW360WIG16 | C30: 1 | E30: 99J直发Bob头头套14 | F30: 99JSTWBOB14 | G30: -1
A31: BODY4*4头套12 | B31: BW4*4WIG12 | C31: 2 | E31: 直条Bob头14 | F31: STWBOB14 | G31: -1
A32: BODY4*4头套14 | B32: BW4*4WIG14 | C32: 2 | E32: BODYBOB头12 | F32: BWBOB12 | G32: -2
A33: BODY4*4头套16 | B33: BW4*4WIG16 | C33: 1 | E33: BODYBOB头14 | F33: BWBOB14 | G33: -3
A34: BODY4*4头套18 | B34: BW4*4WIG18 | C34: 2 | E34: JCBob头10 | F34: JCBOB10 | G34: -3
A35: BODY4*4头套20 | B35: BW4*4WIG20 | C35: 1 | E35: DEEPBOB头8 | F35: DEEPBOB8 | G35: -1
A36: DEEP4*4头套14 | B36: DEEP4*4WIG14 | C36: 1 | E36: 自然曲BOB头8 | F36: WATERBOB8 | G36: -1
A37: DEEP4*4头套16 | B37: DEEP4*4WIG16 | C37: 1 | E37: 齐刘海直条BOB头10 | F37: BBSTWBOB10 | G37: -1
A38: DEEP4*4头套20 | B38: DEEP4*4WIG20 | C38: 2 | E38: 齐刘海直条BOB头12 | F38: BBSTWBOB12 | G38: -3
A39: BODY6*6头套14 | B39: BW6*6LFW14 | C39: 1 | E39: BODY360头套12 | F39: BW360WIG12 | G39: -1
A40: BODY6*6头套18 | B40: BW6*6LFW18 | C40: 1 | E40: BODY360头套18 | F40: BW360WIG18 | G40: -2
A41: BODY6*6头套20 | B41: BW6*6LFW20 | C41: 1 | E41: BODY360头套20 | F41: BW360WIG20 | G41: -2
A42: DEEP6*6头套14 | B42: DEEP6*6LFW14 | C42: 1 | E42: BODY360头套22 | F42: BW360WIG22 | G42: -3
A43: DEEP6*6头套20 | B43: DEEP6*6LFW20 | C43: 3 | E43: DEEP4*4头套22 | F43: DEEP4*4WIG22 | G43: -1
A44: DEEP6*6头套22 | B44: DEEP6*6LFW22 | C44: 1 | E44: DEEP6*6头套16 | F44: DEEP6*6LFW16 | G44: -1
A45: DEEP6*6头套24 | B45: DEEP6*6LFW24 | C45: 4 | E45: 透明蕾丝BODY半蕾丝头套8 | F45: TRBWLFW8 | G45: -2
A46: 透明蕾丝BODY半蕾丝头套16 | B46: TRBWLFW16 | C46: 1 | E46: 透明蕾丝BODY半蕾丝头套14 | F46: TRBWLFW14 | G46: -1
A47: 透明蕾丝BODY半蕾丝头套20 | B47: TRBWLFW20 | C47: 1 | E47: 透明蕾丝BODY半蕾丝头套22 | F47: TRBWLFW22 | G47: -4
A48: 透明蕾丝 自然曲半蕾丝头套16 | B48: TRWATERLFW16 | C48: 5 | E48: 透明蕾丝JC半蕾丝头套14 | F48: TRJCLFW14 | G48: -4
C49: =SUM(C2:C48) -> 102 | G49: =SUM(G2:G48) -> -129

Sheet 11.26待再次核实
A1: 尺组合 | B1: 条码 | C1: 发货后发货仓库存清点 | D1: ERP库存 | E1: 差异 | F1: 入库情况 | G1: 11.27日发货后的库存
A2: 直条Bob头10 | B2: STWBOB10 | C2: 81 | D2: 54 | E2: 27 | F2: 2019-11-23 89/90批入库 40 2019-11-02 81批入库 20 | G2: 78 | H2: 数据包含了之前的PFSTWBOB10
A3: 直条Bob头12 | B3: STWBOB12 | C3: 62 | D3: 42 | E3: 20 | F3: 2019-11-23 89/90批入库 30 2019-11-20 86/87批入库 30 | G3: 62 | H3: 数据包含了之前的PFSTWBOB12
A4: DEEPBOB头10 | B4: DEEPBOB10 | C4: 38 | D4: 27 | E4: 11 | F4: 2019-11-23 89/90批入库 20 2019-11-20 86/87批入库10 | G4: 36
A5: 齐刘海直条BOB头14 | B5: BBSTWBOB14 | C5: 3 | D5: 16 | E5: -13 | F5: 8月入5 9月入4 | G5: 3

Sheet 11.27
A1: 尺组合 | B1: 条码 | C1: 发货后发货仓库存清点 | D1: ERP库存 | E1: 差异
A2: 613直发4*4BOB头套8 | B2: 613STW4*4BOB8 | C2: 未清点 | F2: 本页数据并不包括第91批的到货。
A3: 613直发4*4BOB头套10 | B3: 613STW4*4BOB10 | C3: 未清点
A4: JC360头套16 | B4: JC360WIG16 | C4: 10 | D4: 10 | E4: 0
A5: JC360头套18 | B5: JC360WIG18 | C5: 11 | D5: 10 | E5: 1
A6: JC360头套20 | B6: JC360WIG20 | C6: 9 | D6: 10 | E6: -1
A7: JC360头套22 | B7: JC360WIG22 | C7: 7 | D7: 7 | E7: 0
A8: JC360头套24 | B8: JC360WIG24 | C8: 15 | D8: 15 | E8: 0
A9: 直条4*4头套12 | B9: STW4*4WIG12 | C9: 5 | D9: 5 | E9: 0
A10: 直条4*4头套14 | B10: STW4*4WIG14 | C10: 5 | D10: 5 | E10: 0
A11: 直条4*4头套16 | B11: STW4*4WIG16 | C11: 2 | D11: 3 | E11: -1
A12: 直条4*4头套18 | B12: STW4*4WIG18 | C12: 2 | D12: 3 | E12: -1
A13: 直条4*4头套20 | B13: STW4*4WIG20 | C13: 6 | D13: 6 | E13: 0
A14: 直条4*4头套22 | B14: STW4*4WIG22 | C14: 3 | D14: 3 | E14: 0
A15: 直条4*4头套24 | B15: STW4*4WIG24 | C15: 4 | D15: 4 | E15: 0
A16: 自然曲4*4头套12 | B16: WATER4*4WIG12 | C16: 1 | D16: 1 | E16: 0
A17: 直条6*6头套10 | B17: STW6*6LFW10 | C17: 7 | D17: 7 | E17: 0
A18: 直条6*6头套12 | B18: STW6*6LFW12 | C18: 6 | D18: 6 | E18: 0
A19: 直条6*6头套14 | B19: STW6*6LFW14 | C19: 10 | D19: 10 | E19: 0
A20: 直条6*6头套16 | B20: STW6*6LFW16 | C20: 10 | D20: 6 | E20: 4
A21: 直条6*6头套18 | B21: STW6*6LFW18 | C21: 24 | D21: 24 | E21: 0
A22: 直条6*6头套20 | B22: STW6*6LFW20 | C22: 7 | D22: 7 | E22: 0
A23: 直条6*6头套22 | B23: STW6*6LFW22 | C23: 2 | D23: 3 | E23: -1
A24: 直条6*6头套24 | B24: STW6*6LFW24 | C24: 8 | D24: 6 | E24: 2
A25: LOOSEDEEP6*6头套14 | B25: LSDP6*6LFW14 | C25: 2 | D25: 0 | E25: 2
A26: LOOSEDEEP6*6头套16 | B26: LSDP6*6LFW16 | C26: 4 | D26: 4 | E26: 0
A27: LOOSEDEEP6*6头套18 | B27: LSDP6*6LFW18 | C27: 0 | D27: 0 | E27: 0
A28: LOOSEDEEP6*6头套20 | B28: LSDP6*6LFW20 | C28: 0 | D28: 0 | E28: 0
A29: LOOSEDEEP6*6头套22 | B29: LSDP6*6LFW22 | C29: 5 | D29: 5 | E29: 0
A30: LOOSEDEEP6*6头套24 | B30: LSDP6*6LFW24 | C30: 0 | D30: 0 | E30: 0
A31: 透明蕾丝BODY半蕾丝头套24 | B31: TRBWLFW24 | C31: 0 | D31: 0 | E31: 0
A32: 透明蕾丝BODY半蕾丝头套26 | B32: TRBWLFW26 | C32: 9 | D32: 9 | E32: 0
A33: 透明蕾丝JC半蕾丝头套12 | B33: TRJCLFW12 | C33: 9 | D33: 9 | E33: 0
A34: 透明蕾丝JC半蕾丝头套14 | B34: TRJCLFW14 | C34: 9 | D34: 5 | E34: 4
A35: 透明蕾丝JC半蕾丝头套16 | B35: TRJCLFW16 | C35: 11 | D35: 12 | E35: -1
A36: 透明蕾丝JC半蕾丝头套18 | B36: TRJCLFW18 | C36: 0 | D36: 0 | E36: 0
A37: 透明蕾丝JC半蕾丝头套20 | B37: TRJCLFW20 | C37: 6 | D37: 6 | E37: 0
A38: 透明蕾丝JC半蕾丝头套22 | B38: TRJCLFW22 | C38: 4 | D38: 4 | E38: 0
A39: 透明蕾丝JC半蕾丝头套24 | B39: TRJCLFW24 | C39: 2 | D39: 0 | E39: 2
A40: 透明蕾丝直发半蕾丝头套12 | B40: TRSTWLFW12 | C40: 1 | D40: 1 | E40: 0
A41: 透明蕾丝直发半蕾丝头套14 | B41: TRSTWLFW14 | C41: 8 | D41: 8 | E41: 0
A42: 透明蕾丝直发半蕾丝头套16 | B42: TRSTWLFW16 | C42: 12 | D42: 16 | E42: -4
A43: 透明蕾丝直发半蕾丝头套18 | B43: TRSTWLFW18 | C43: 21 | D43: 21 | E43: 0
A44: 透明蕾丝直发半蕾丝头套20 | B44: TRSTWLFW20 | C44: 25 | D44: 26 | E44: -1
A45: 透明蕾丝直发半蕾丝头套22 | B45: TRSTWLFW22 | C45: 20 | D45: 20 | E45: 0
A46: 透明蕾丝直发半蕾丝头套24 | B46: TRSTWLFW24 | C46: 1 | D46: 5 | E46: -4
A47: 透明蕾丝直发半蕾丝头套26 | B47: TRSTWLFW26 | C47: 23 | D47: 13 | E47: 10
A48: 透明蕾丝直发半蕾丝头套28 | B48: TRSTWLFW28 | C48: 4 | D48: 4 | E48: 0
A49: 透明蕾丝直发半蕾丝头套30 | B49: TRSTWLFW30 | C49: 8 | D49: 8 | E49: 0
A50: 透明蕾丝自然曲半蕾丝头套14 | B50: TRWATERLFW14 | C50: 0 | D50: 0 | E50: 0
A51: 透明蕾丝自然曲半蕾丝头套16 | B51: TRWATERLFW16 | C51: 10 | D51: 10 | E51: 0
A52: 透明蕾丝 自然曲半蕾丝头套18 | B52: TRWATERLFW18 | C52: 0 | D52: 5 | E52: -5
A53: 透明蕾丝 自然曲半蕾丝头套20 | B53: TRWATERLFW20 | C53: 0 | D53: 0 | E53: 0
A54: 透明蕾丝 自然曲半蕾丝头套22 | B54: TRWATERLFW22 | C54: 0 | D54: 0 | E54: 0
A55: 直发单条8 | B55: STW8 | C55: 未清点
A56: 直发单条10 | B56: STW10 | C56: 未清点
A57: 直发单条12 | B57: STW12 | C57: 未清点
A58: 直发单条14 | B58: STW14 | C58: 未清点
A59: 直发单条16 | B59: STW16 | C59: 未清点
A60: 直发单条18 | B60: STW18 | C60: 未清点
A61: 直发单条20 | B61: STW20 | C61: 未清点
A62: 直发单条22 | B62: STW22 | C62: 未清点
A63: 直发单条24 | B63: STW24 | C63: 未清点
A64: 直发单条26 | B64: STW26 | C64: 未清点
A65: 直发单条28 | B65: STW28 | C65: 未清点
A66: 直发单条30 | B66: STW30 | C66: 未清点
A67: AliPearl直发单条8 | B67: APSTW8 | C67: 未清点
A68: AliPearl直发单条10 | B68: APSTW10 | C68: 未清点
A69: AliPearl直发单条12 | B69: APSTW12 | C69: 未清点
A70: AliPearl直发单条14 | B70: APSTW14 | C70: 未清点
A71: AliPearl直发单条16 | B71: APSTW16 | C71: 未清点
A72: AliPearl直发单条18 | B72: APSTW18 | C72: 未清点
A73: AliPearl直发单条20 | B73: APSTW20 | C73: 未清点
A74: AliPearl直发单条22 | B74: APSTW22 | C74: 未清点
A75: AliPearl直发单条24 | B75: APSTW24 | C75: 未清点
A76: AliPearl直发单条26 | B76: APSTW26 | C76: 未清点
A77: AliPearl直发单条28 | B77: APSTW28 | C77: 未清点
A78: AliPearl直发单条30 | B78: APSTW30 | C78: 未清点
A79: Westkiss直发单条8 | B79: WKSTW8 | C79: 未清点
A80: Westkiss直发单条10 | B80: WKSTW10 | C80: 未清点
A81: Westkiss直发单条12 | B81: WKSTW12 | C81: 未清点
A82: Westkiss直发单条14 | B82: WKSTW14 | C82: 未清点
A83: Westkiss直发单条16 | B83: WKSTW16 | C83: 未清点
A84: Westkiss直发单条18 | B84: WKSTW18 | C84: 未清点
A85: Westkiss直发单条20 | B85: WKSTW20 | C85: 未清点
A86: Westkiss直发单条22 | B86: WKSTW22 | C86: 未清点
A87: Westkiss直发单条24 | B87: WKSTW24 | C87: 未清点
A88: Westkiss直发单条26 | B88: WKSTW26 | C88: 未清点
A89: Wiggins直发单条8 | B89: GGSTW8 | C89: 未清点
A90: Wiggins直发单条10 | B90: GGSTW10 | C90: 未清点
A91: Wiggins直发单条12 | B91: GGSTW12 | C91: 未清点
A92: Wiggins直发单条14 | B92: GGSTW14 | C92: 未清点
A93: Wiggins直发单条16 | B93: GGSTW16 | C93: 未清点
A94: Wiggins直发单条18 | B94: GGSTW18 | C94: 未清点
A95: Wiggins直发单条20 | B95: GGSTW20 | C95: 未清点
A96: Wiggins直发单条22 | B96: GGSTW22 | C96: 未清点
A97: Wiggins直发单条24 | B97: GGSTW24 | C97: 未清点
A98: Wiggins直发单条26 | B98: GGSTW26 | C98: 未清点
A99: BODY单条8 | B99: BODY8 | C99: 未清点
A100: BODY单条10 | B100: BODY10 | C100: 未清点
A101: BODY单条12 | B101: BODY12 | C101: 未清点
A102: BODY单条14 | B102: BODY14 | C102: 未清点
A103: BODY单条16 | B103: BODY16 | C103: 未清点
A104: BODY单条18 | B104: BODY18 | C104: 未清点
A105: BODY单条20 | B105: BODY20 | C105: 未清点
A106: BODY单条22 | B106: BODY22 | C106: 未清点
A107: BODY单条24 | B107: BODY24 | C107: 未清点
A108: BODY单条26 | B108: BODY26 | C108: 未清点
A109: BODY单条28 | B109: BODY28 | C109: 未清点
A110: BODY单条30 | B110: BODY30 | C110: 未清点
A111: AliPearlbody单条8 | B111: APBODY8 | C111: 未清点
A112: AliPearlbody单条10 | B112: APBODY10 | C112: 未清点
A113: AliPearlbody单条12 | B113: APBODY12 | C113: 未清点
A114: AliPearlbody单条14 | B114: APBODY14 | C114: 未清点
A115: AliPearlbody单条16 | B115: APBODY16 | C115: 未清点
A116: AliPearlbody单条18 | B116: APBODY18 | C116: 未清点
A117: AliPearlbody单条20 | B117: APBODY20 | C117: 未清点
A118: AliPearlbody单条22 | B118: APBODY22 | C118: 未清点
A119: AliPearlbody单条24 | B119: APBODY24 | C119: 未清点
A120: AliPearlbody单条26 | B120: APBODY26 | C120: 未清点
A121: AliPearlbody单条28 | B121: APBODY28 | C121: 未清点
A122: AliPearlbody单条30 | B122: APBODY30 | C122: 未清点
A123: Westkissbody单条8 | B123: WKBODY8 | C123: 未清点
A124: Westkissbody单条10 | B124: WKBODY10 | C124: 未清点
A125: Westkissbody单条12 | B125: WKBODY12 | C125: 未清点
A126: Westkissbody单条14 | B126: WKBODY14 | C126: 未清点
A127: Westkissbody单条16 | B127: WKBODY16 | C127: 未清点
A128: Westkissbody单条18 | B128: WKBODY18 | C128: 未清点
A129: Westkissbody单条20 | B129: WKBODY20 | C129: 未清点
A130: Westkissbody单条22 | B130: WKBODY22 | C130: 未清点
A131: Westkissbody单条24 | B131: WKBODY24 | C131: 未清点
A132: Westkissbody单条26 | B132: WKBODY26 | C132: 未清点
A133: Wigginsbody单条8 | B133: GGBODY8 | C133: 未清点
A134: Wigginsbody单条10 | B134: GGBODY10 | C134: 未清点
A135: Wigginsbody单条12 | B135: GGBODY12 | C135: 未清点
A136: Wigginsbody单条14 | B136: GGBODY14 | C136: 未清点
A137: Wigginsbody单条16 | B137: GGBODY16 | C137: 未清点
A138: Wigginsbody单条18 | B138: GGBODY18 | C138: 未清点
A139: Wigginsbody单条20 | B139: GGBODY20 | C139: 未清点
A140: Wigginsbody单条22 | B140: GGBODY22 | C140: 未清点
A141: Wigginsbody单条24 | B141: GGBODY24 | C141: 未清点
A142: Wigginsbody单条26 | B142: GGBODY26 | C142: 未清点
A143: 直条3D-13*6头套12 | B143: STW3D13*6WIG12 | C143: 8 | D143: 8 | E143: 0
A144: 直条3D-13*6头套14 | B144: STW3D13*6WIG14 | C144: 2 | D144: 1 | E144: 1
A145: 直条3D-13*6头套16 | B145: STW3D13*6WIG16 | C145: 7 | D145: 7 | E145: 0
A146: 直条3D-13*6头套18 | B146: STW3D13*6WIG18 | C146: 15 | D146: 15 | E146: 0
A147: 直条3D-13*6头套20 | B147: STW3D13*6WIG20 | C147: 22 | D147: 12 | E147: 10
A148: 直条3D-13*6头套22 | B148: STW3D13*6WIG22 | C148: 10 | D148: 10 | E148: 0
A149: 直条3D-13*6头套24 | B149: STW3D13*6WIG24 | C149: 4 | D149: 4 | E149: 0
A150: BODY 3D-13*6头套12 | B150: BW3D13*6WIG12 | C150: 9 | D150: 14 | E150: -5
A151: BODY 3D-13*6头套14 | B151: BW3D13*6WIG14 | C151: 2 | D151: 2 | E151: 0
A152: BODY 3D-13*6头套16 | B152: BW3D13*6WIG16 | C152: 19 | D152: 36 | E152: -17
A153: BODY 3D-13*6头套18 | B153: BW3D13*6WIG18 | C153: 6 | D153: 6 | E153: 0
A154: BODY 3D-13*6头套20 | B154: BW3D13*6WIG20 | C154: 6 | D154: 6 | E154: 0
A155: BODY 3D-13*6头套22 | B155: BW3D13*6WIG22 | C155: 8 | D155: 8 | E155: 0
A156: BODY 3D-13*6头套24 | B156: BW3D13*6WIG24 | C156: 18 | D156: 18 | E156: 0
A157: LDW 3D-13*6头套12 | B157: LSDP3D13*6WIG12 | C157: 3 | D157: 3 | E157: 0
A158: LDW 3D-13*6头套16 | B158: LSDP3D13*6WIG16 | C158: 1 | D158: 1 | E158: 0
A159: 透明DEEP6*6头套16 | B159: TRDEEP6*6LFW16 | C159: 5 | D159: 5 | E159: 0
A160: 透明DEEP6*6头套18 | B160: TRDEEP6*6LFW18 | C160: 4 | D160: 4 | E160: 0
A161: 透明DEEP6*6头套22 | B161: TRDEEP6*6LFW22 | C161: 4 | D161: 5 | E161: -1
A162: 透明DEEP6*6头套24 | B162: TRDEEP6*6LFW24 | C162: 3 | D162: 3 | E162: 0
A163: 透明BODY6*6头套20 | B163: TRBW6*6LFW20 | C163: 13 | D163: 14 | E163: -1
A164: 透明直条6*6头套12 | B164: TRSTW6*6LFW12 | C164: 5 | E164: 5
A165: 透明直条6*6头套20 | B165: TRSTW6*6LFW20 | C165: 31 | D165: 29 | E165: 2
A166: 透明直条6*6头套22 | B166: TRSTW6*6LFW22 | C166: 18 | D166: 23 | E166: -5
A167: 透明直条6*6头套24 | B167: TRSTW6*6LFW24 | C167: 12 | D167: 12 | E167: 0
A168: 直条360头套10 | B168: STW360WIG10 | C168: 3 | D168: 3 | E168: 0
A169: 直条360头套12 | B169: STW360WIG12 | C169: 3 | D169: 3 | E169: 0
A170: 直条360头套14 | B170: STW360WIG14 | C170: 4 | D170: 4 | E170: 0
A171: 直条360头套16 | B171: STW360WIG16 | C171: 3 | D171: 4 | E171: -1
A172: 直条360头套18 | B172: STW360WIG18 | C172: 9 | D172: 8 | E172: 1
A173: 直条360头套20 | B173: STW360WIG20 | C173: 9 | D173: 10 | E173: -1
A174: 直条360头套22 | B174: STW360WIG22 | C174: 9 | D174: 9 | E174: 0
A175: 直条360头套24 | B175: STW360WIG24 | C175: 10 | D175: 10 | E175: 0
A176: DEEP4*4头套12 | B176: DEEP4*4WIG12 | C176: 2 | D176: 2 | E176: 0
A177: DEEP4*4头套14 | B177: DEEP4*4WIG14 | C177: 4 | D177: 4 | E177: 0
A178: DEEP4*4头套16 | B178: DEEP4*4WIG16 | C178: 2 | D178: 2 | E178: 0
A179: DEEP4*4头套20 | B179: DEEP4*4WIG20 | C179: 6 | D179: 6 | E179: 0
A180: DEEP4*4头套22 | B180: DEEP4*4WIG22 | C180: 5 | D180: 5 | E180: 0
A181: DEEP 3D-13*6头套 14 | B181: DEEP3D13*6WIG14 | C181: 5 | D181: 5 | E181: 0
A182: DEEP 3D-13*6头套 16 | B182: DEEP3D13*6WIG16 | C182: 1 | D182: 2 | E182: -1
A183: DEEP 3D-13*6头套 18 | B183: DEEP3D13*6WIG18 | C183: 3 | D183: 3 | E183: 0
A184: DEEP 3D-13*6头套 20 | B184: DEEP3D13*6WIG20 | C184: 6 | D184: 6 | E184: 0
A185: DEEP 3D-13*6头套 22 | B185: DEEP3D13*6WIG22 | C185: 6 | D185: 6 | E185: 0

Sheet 11.29待再次核实
A1: 尺组合 | B1: 条码 | C1: 发货后发货仓库存清点 | D1: ERP库存 | E1: 差异 | F1: 11.29日发货后的库存
A2: 直条6*6头套16 | B2: STW6*6LFW16 | C2: 10 | D2: 6 | E2: 4 | F2: 9
A3: 透明蕾丝JC半蕾丝头套14 | B3: TRJCLFW14 | C3: 9 | D3: 5 | E3: 4 | F3: 9
A4: 透明蕾丝直发半蕾丝头套16 | B4: TRSTWLFW16 | C4: 12 | D4: 16 | E4: -4 | F4: 11
A5: 透明蕾丝直发半蕾丝头套24 | B5: TRSTWLFW24 | C5: 1 | D5: 5 | E5: -4 | F5: 0
A6: 透明蕾丝 自然曲半蕾丝头套18 | B6: TRWATERLFW18 | C6: 0 | D6: 5 | E6: -5 | F6: 5
A7: 直条3D-13*6头套20 | B7: STW3D13*6WIG20 | C7: 22 | D7: 12 | E7: 10 | F7: 22
A8: BODY 3D-13*6头套12 | B8: BW3D13*6WIG12 | C8: 9 | D8: 14 | E8: -5 | F8: 9
A9: BODY 3D-13*6头套16 | B9: BW3D13*6WIG16 | C9: 19 | D9: 36 | E9: -17 | F9: 36
A10: 透明直条6*6头套12 | B10: TRSTW6*6LFW12 | C10: 5 | E10: 5 | F10: 5
A11: 透明直条6*6头套22 | B11: TRSTW6*6LFW22 | C11: 18 | D11: 23 | E11: -5 | F11: 18

Sheet 12.02
A1: 尺组合 | B1: 条码 | C1: 12.02发货后发货仓库存清点 | D1: ERP库存 | E1: 差异
A2: 613直发4*4BOB头套8 | B2: 613STW4*4BOB8 | D2: =VLOOKUP(B:B,[1]库存明细!$D:$H,5,0) -> 262 | E2: =C2-D2 -> -262
A3: 613直发4*4BOB头套10 | B3: 613STW4*4BOB10 | D3: =VLOOKUP(B:B,[1]库存明细!$D:$H,5,0) -> 36 | E3: =C3-D3 -> -36
A4: 直条4x4发块8 | B4: FCSTW8 | D4: =VLOOKUP(B:B,[1]库存明细!$D:$H,5,0) -> 13 | E4: -13
A5: 直条4x4发块10 | B5: FCSTW10 | D5: =VLOOKUP(B:B,[1]库存明细!$D:$H,5,0) -> 42 | E5: -42
A6: 直条4x4发块12 | B6: FCSTW12 | D6: =VLOOKUP(B:B,[1]库存明细!$D:$H,5,0) -> 18 | E6: -18
A7: 直条4x4发块14 | B7: FCSTW14 | D7: =VLOOKUP(B:B,[1]库存明细!$D:$H,5,0) -> 31 | E7: -31
A8: 直条4x4发块16 | B8: FCSTW16 | D8: =VLOOKUP(B:B,[1]库存明细!$D:$H,5,0) -> 25 | E8: -25
A9: 直条4x4发块18 | B9: FCSTW18 | D9: =VLOOKUP(B:B,[1]库存明细!$D:$H,5,0) -> 23 | E9: -23
A10: 直条4x4发块20 | B10: FCSTW20 | D10: =VLOOKUP(B:B,[1]库存明细!$D:$H,5,0) -> 21 | E10: -21
A11: 中分直条4x4发块8 | B11: MCSTW8 | D11: =VLOOKUP(B:B,[1]库存明细!$D:$H,5,0) -> 9 | E11: -9
A12: 中分直条4x4发块10 | B12: MCSTW10 | D12: =VLOOKUP(B:B,[1]库存明细!$D:$H,5,0) -> 14 | E12: -14
A13: 中分直条4x4发块12 | B13: MCSTW12 | D13: =VLOOKUP(B:B,[1]库存明细!$D:$H,5,0) -> 8 | E13: -8
A14: 中分直条4x4发块14 | B14: MCSTW14 | D14: =VLOOKUP(B:B,[1]库存明细!$D:$H,5,0) -> 29 | E14: -29
A15: 中分直条4x4发块16 | B15: MCSTW16 | D15: =VLOOKUP(B:B,[1]库存明细!$D:$H,5,0) -> 13 | E15: -13
A16: 中分直条4x4发块18 | B16: MCSTW18 | D16: =VLOOKUP(B:B,[1]库存明细!$D:$H,5,0) -> 28 | E16: -28
A17: 中分直条4x4发块20 | B17: MCSTW20 | D17: =VLOOKUP(B:B,[1]库存明细!$D:$H,5,0) -> 20 | E17: -20
A18: 直条5x5发块10 | B18: FC5*5STW10 | D18: =VLOOKUP(B:B,[1]库存明细!$D:$H,5,0) -> 10 | E18: -10
A19: 直条5x5发块12 | B19: FC5*5STW12 | D19: =VLOOKUP(B:B,[1]库存明细!$D:$H,5,0) -> 12 | E19: -12
A20: 直条5x5发块14 | B20: FC5*5STW14 | D20: =VLOOKUP(B:B,[1]库存明细!$D:$H,5,0) -> 20 | E20: -20
A21: 直条5x5发块16 | B21: FC5*5STW16 | D21: =VLOOKUP(B:B,[1]库存明细!$D:$H,5,0) -> 16 | E21: -16
A22: 直条5x5发块18 | B22: FC5*5STW18 | D22: =VLOOKUP(B:B,[1]库存明细!$D:$H,5,0) -> 19 | E22: -19
A23: 直条5x5发块20 | B23: FC5*5STW20 | D23: =VLOOKUP(B:B,[1]库存明细!$D:$H,5,0) -> 17 | E23: -17
A24: 中分直条5x5发块10 | B24: MC5*5STW10 | D24: =VLOOKUP(B:B,[1]库存明细!$D:$H,5,0) -> 7 | E24: -7
A25: 中分直条5x5发块12 | B25: MC5*5STW12 | D25: =VLOOKUP(B:B,[1]库存明细!$D:$H,5,0) -> 12 | E25: -12
A26: 中分直条5x5发块14 | B26: MC5*5STW14 | D26: =VLOOKUP(B:B,[1]库存明细!$D:$H,5,0) -> 10 | E26: -10
A27: 中分直条5x5发块16 | B27: MC5*5STW16 | D27: =VLOOKUP(B:B,[1]库存明细!$D:$H,5,0) -> 12 | E27: -12
A28: 中分直条5x5发块18 | B28: MC5*5STW18 | D28: =VLOOKUP(B:B,[1]库存明细!$D:$H,5,0) -> 18 | E28: -18
A29: 中分直条5x5发块20 | B29: MC5*5STW20 | D29: =VLOOKUP(B:B,[1]库存明细!$D:$H,5,0) -> 12 | E29: -12
A30: 直条6*6自由分发块12 | B30: FC6*6STW12 | D30: =VLOOKUP(B:B,[1]库存明细!$D:$H,5,0) -> 18 | E30: -18
A31: 直条6*6自由分发块14 | B31: FC6*6STW14 | D31: =VLOOKUP(B:B,[1]库存明细!$D:$H,5,0) -> 14 | E31: -14
A32: 直条6*6自由分发块16 | B32: FC6*6STW16 | D32: =VLOOKUP(B:B,[1]库存明细!$D:$H,5,0) -> 16 | E32: -16
A33: 直条6*6自由分发块18 | B33: FC6*6STW18 | D33: =VLOOKUP(B:B,[1]库存明细!$D:$H,5,0) -> 21 | E33: -21
A34: 直条6*6自由分发块20 | B34: FC6*6STW20 | D34: =VLOOKUP(B:B,[1]库存明细!$D:$H,5,0) -> 9 | E34: -9
A35: 中分直条6*6发块10 | B35: MC6*6STW10 | D35: =VLOOKUP(B:B,[1]库存明细!$D:$H,5,0) -> 5 | E35: -5
A36: 中分直条6*6发块12 | B36: MC6*6STW12 | D36: =VLOOKUP(B:B,[1]库存明细!$D:$H,5,0) -> 10 | E36: -10
A37: 中分直条6*6发块14 | B37: MC6*6STW14 | D37: =VLOOKUP(B:B,[1]库存明细!$D:$H,5,0) -> 9 | E37: -9
A38: 中分直条6*6发块16 | B38: MC6*6STW16 | D38: =VLOOKUP(B:B,[1]库存明细!$D:$H,5,0) -> 11 | E38: -11
A39: 中分直条6*6发块18 | B39: MC6*6STW18 | D39: =VLOOKUP(B:B,[1]库存明细!$D:$H,5,0) -> 27 | E39: -27
A40: 中分直条6*6发块20 | B40: MC6*6STW20 | D40: =VLOOKUP(B:B,[1]库存明细!$D:$H,5,0) -> 9 | E40: -9
A41: 直发蕾丝前头8 | B41: FROSTW8 | D41: =VLOOKUP(B:B,[1]库存明细!$D:$H,5,0) -> 24 | E41: -24
A42: 直发蕾丝前头10 | B42: FROSTW10 | D42: =VLOOKUP(B:B,[1]库存明细!$D:$H,5,0) -> 41 | E42: -41
A43: 直发蕾丝前头12 | B43: FROSTW12 | D43: =VLOOKUP(B:B,[1]库存明细!$D:$H,5,0) -> 29 | E43: -29
A44: 直发蕾丝前头14 | B44: FROSTW14 | D44: =VLOOKUP(B:B,[1]库存明细!$D:$H,5,0) -> 11 | E44: -11
A45: 直发蕾丝前头16 | B45: FROSTW16 | D45: =VLOOKUP(B:B,[1]库存明细!$D:$H,5,0) -> 10 | E45: -10
A46: 直发蕾丝前头18 | B46: FROSTW18 | D46: =VLOOKUP(B:B,[1]库存明细!$D:$H,5,0) -> 24 | E46: -24
A47: 直发蕾丝前头20 | B47: FROSTW20 | D47: =VLOOKUP(B:B,[1]库存明细!$D:$H,5,0) -> 25 | E47: -25
A48: 直条13*6大前头10 | B48: FRO13*6STW10 | D48: =VLOOKUP(B:B,[1]库存明细!$D:$H,5,0) -> 12 | E48: -12
A49: 直条13*6大前头12 | B49: FRO13*6STW12 | D49: =VLOOKUP(B:B,[1]库存明细!$D:$H,5,0) -> 11 | E49: -11
A50: 直条13*6大前头14 | B50: FRO13*6STW14 | D50: =VLOOKUP(B:B,[1]库存明细!$D:$H,5,0) -> 7 | E50: -7
A51: 直条13*6大前头16 | B51: FRO13*6STW16 | D51: =VLOOKUP(B:B,[1]库存明细!$D:$H,5,0) -> 6 | E51: -6
A52: 直条13*6大前头18 | B52: FRO13*6STW18 | D52: =VLOOKUP(B:B,[1]库存明细!$D:$H,5,0) -> 8 | E52: -8
A53: 直条13*6大前头20 | B53: FRO13*6STW20 | D53: =VLOOKUP(B:B,[1]库存明细!$D:$H,5,0) -> 13 | E53: -13
A54: 直发单条8 | B54: STW8 | D54: =VLOOKUP(B:B,[1]库存明细!$D:$H,5,0) -> 23 | E54: -23
A55: 直发单条10 | B55: STW10 | D55: =VLOOKUP(B:B,[1]库存明细!$D:$H,5,0) -> 38 | E55: -38
A56: 直发单条12 | B56: STW12 | D56: =VLOOKUP(B:B,[1]库存明细!$D:$H,5,0) -> 62 | E56: -62
A57: 直发单条14 | B57: STW14 | D57: =VLOOKUP(B:B,[1]库存明细!$D:$H,5,0) -> 48 | E57: -48
A58: 直发单条16 | B58: STW16 | D58: =VLOOKUP(B:B,[1]库存明细!$D:$H,5,0) -> 59 | E58: -59
A59: 直发单条18 | B59: STW18 | D59: =VLOOKUP(B:B,[1]库存明细!$D:$H,5,0) -> 88 | E59: -88
A60: 直发单条20 | B60: STW20 | D60: =VLOOKUP(B:B,[1]库存明细!$D:$H,5,0) -> 83 | E60: -83
A61: 直发单条22 | B61: STW22 | D61: =VLOOKUP(B:B,[1]库存明细!$D:$H,5,0) -> 77 | E61: -77
A62: 直发单条24 | B62: STW24 | D62: =VLOOKUP(B:B,[1]库存明细!$D:$H,5,0) -> 147 | E62: -147
A63: 直发单条26 | B63: STW26 | D63: =VLOOKUP(B:B,[1]库存明细!$D:$H,5,0) -> 38 | E63: -38
A64: 直发单条28 | B64: STW28 | D64: =VLOOKUP(B:B,[1]库存明细!$D:$H,5,0) -> 35 | E64: -35
A65: 直发单条30 | B65: STW30 | D65: =VLOOKUP(B:B,[1]库存明细!$D:$H,5,0) -> 25 | E65: -25
A66: 直条2x6发块10 | B66: MC2*6STW10 | D66: =VLOOKUP(B:B,[1]库存明细!$D:$H,5,0) -> 15 | E66: -15
A67: 直条2x6发块12 | B67: MC2*6STW12 | D67: =VLOOKUP(B:B,[1]库存明细!$D:$H,5,0) -> 14 | E67: =C67-D67 -> -14
A68: 直条2x6发块14 | B68: MC2*6STW14 | D68: =VLOOKUP(B:B,[1]库存明细!$D:$H,5,0) -> 15 | E68: -15
A69: 直条2x6发块16 | B69: MC2*6STW16 | D69: =VLOOKUP(B:B,[1]库存明细!$D:$H,5,0) -> 10 | E69: -10
A70: 直条2x6发块18 | B70: MC2*6STW18 | D70: =VLOOKUP(B:B,[1]库存明细!$D:$H,5,0) -> 12 | E70: -12
A71: 直条2x6发块20 | B71: MC2*6STW20 | D71: =VLOOKUP(B:B,[1]库存明细!$D:$H,5,0) -> 6 | E71: -6
A72: 直条4*4三分发块10 | B72: TCSTW10 | D72: =VLOOKUP(B:B,[1]库存明细!$D:$H,5,0) -> 8 | E72: -8
A73: 直条4*4三分发块12 | B73: TCSTW12 | D73: =VLOOKUP(B:B,[1]库存明细!$D:$H,5,0) -> 5 | E73: -5
A74: 直条4*4三分发块14 | B74: TCSTW14 | D74: =VLOOKUP(B:B,[1]库存明细!$D:$H,5,0) -> 6 | E74: -6
A75: 直条4*4三分发块16 | B75: TCSTW16 | D75: =VLOOKUP(B:B,[1]库存明细!$D:$H,5,0) -> 11 | E75: -11
A76: 直条4*4三分发块18 | B76: TCSTW18 | D76: =VLOOKUP(B:B,[1]库存明细!$D:$H,5,0) -> 13 | E76: -13
A77: 直条4*4三分发块20 | B77: TCSTW20 | D77: =VLOOKUP(B:B,[1]库存明细!$D:$H,5,0) -> 8 | E77: -8
A78: 透明直发蕾丝前头12 | B78: TRFROSTW12 | D78: =VLOOKUP(B:B,[1]库存明细!$D:$H,5,0) -> 5 | E78: -5
A79: 透明直发蕾丝前头14 | B79: TRFROSTW14 | D79: =VLOOKUP(B:B,[1]库存明细!$D:$H,5,0) -> 28 | E79: -28
A80: 透明直发蕾丝前头16 | B80: TRFROSTW16 | D80: =VLOOKUP(B:B,[1]库存明细!$D:$H,5,0) -> 12 | E80: -12
A81: 透明直发蕾丝前头18 | B81: TRFROSTW18 | D81: =VLOOKUP(B:B,[1]库存明细!$D:$H,5,0) -> 14 | E81: -14
A82: 透明直发蕾丝前头20 | B82: TRFROSTW20 | D82: =VLOOKUP(B:B,[1]库存明细!$D:$H,5,0) -> 30 | E82: -30
A83: 透明直条4x4发块8 | B83: TRFCSTW8 | D83: =VLOOKUP(B:B,[1]库存明细!$D:$H,5,0) -> 7 | E83: -7
A84: 透明直条4x4发块10 | B84: TRFCSTW10 | D84: =VLOOKUP(B:B,[1]库存明细!$D:$H,5,0) -> 8 | E84: -8
A85: 透明直条4x4发块12 | B85: TRFCSTW12 | D85: =VLOOKUP(B:B,[1]库存明细!$D:$H,5,0) -> 13 | E85: -13
A86: 透明直条4x4发块14 | B86: TRFCSTW14 | D86: =VLOOKUP(B:B,[1]库存明细!$D:$H,5,0) -> 11 | E86: -11
A87: 透明直条4x4发块16 | B87: TRFCSTW16 | D87: =VLOOKUP(B:B,[1]库存明细!$D:$H,5,0) -> 14 | E87: -14
A88: 透明直条4x4发块18 | B88: TRFCSTW18 | D88: =VLOOKUP(B:B,[1]库存明细!$D:$H,5,0) -> 27 | E88: -27
A89: 透明直条4x4发块20 | B89: TRFCSTW20 | D89: =VLOOKUP(B:B,[1]库存明细!$D:$H,5,0) -> 10 | E89: -10
A90: BODY4X4发块8 | B90: FCBW8 | D90: =VLOOKUP(B:B,[1]库存明细!$D:$H,5,0) -> 15 | E90: -15
A91: BODY4X4发块10 | B91: FCBW10 | D91: =VLOOKUP(B:B,[1]库存明细!$D:$H,5,0) -> 17 | E91: -17
A92: BODY4X4发块12 | B92: FCBW12 | D92: =VLOOKUP(B:B,[1]库存明细!$D:$H,5,0) -> 32 | E92: -32
A93: BODY4X4发块14 | B93: FCBW14 | D93: =VLOOKUP(B:B,[1]库存明细!$D:$H,5,0) -> 28 | E93: -28
A94: BODY4X4发块16 | B94: FCBW16 | D94: =VLOOKUP(B:B,[1]库存明细!$D:$H,5,0) -> 29 | E94: -29
A95: BODY4X4发块18 | B95: FCBW18 | D95: =VLOOKUP(B:B,[1]库存明细!$D:$H,5,0) -> 32 | E95: -32
A96: BODY4X4发块20 | B96: FCBW20 | D96: =VLOOKUP(B:B,[1]库存明细!$D:$H,5,0) -> 16 | E96: -16
A97: 中分BODY4X4发块8 | B97: MCBW8 | D97: =VLOOKUP(B:B,[1]库存明细!$D:$H,5,0) -> 14 | E97: -14
A98: 中分BODY4X4发块10 | B98: MCBW10 | D98: =VLOOKUP(B:B,[1]库存明细!$D:$H,5,0) -> 28 | E98: -28
A99: 中分BODY4X4发块12 | B99: MCBW12 | D99: =VLOOKUP(B:B,[1]库存明细!$D:$H,5,0) -> 10 | E99: -10
A100: 中分BODY4X4发块14 | B100: MCBW14 | D100: =VLOOKUP(B:B,[1]库存明细!$D:$H,5,0) -> 25 | E100: -25
A101: 中分BODY4X4发块16 | B101: MCBW16 | D101: =VLOOKUP(B:B,[1]库存明细!$D:$H,5,0) -> 15 | E101: -15
A102: 中分BODY4X4发块18 | B102: MCBW18 | D102: =VLOOKUP(B:B,[1]库存明细!$D:$H,5,0) -> 13 | E102: -13
A103: 中分BODY4X4发块20 | B103: MCBW20 | D103: =VLOOKUP(B:B,[1]库存明细!$D:$H,5,0) -> 18 | E103: -18
A104: BODY5X5发块10 | B104: FC5*5BW10 | D104: =VLOOKUP(B:B,[1]库存明细!$D:$H,5,0) -> 5 | E104: -5
A105: BODY5X5发块12 | B105: FC5*5BW12 | D105: =VLOOKUP(B:B,[1]库存明细!$D:$H,5,0) -> 15 | E105: -15
A106: BODY5X5发块14 | B106: FC5*5BW14 | D106: =VLOOKUP(B:B,[1]库存明细!$D:$H,5,0) -> 15 | E106: -15
A107: BODY5X5发块16 | B107: FC5*5BW16 | D107: =VLOOKUP(B:B,[1]库存明细!$D:$H,5,0) -> 14 | E107: -14
A108: BODY5X5发块18 | B108: FC5*5BW18 | D108: =VLOOKUP(B:B,[1]库存明细!$D:$H,5,0) -> 12 | E108: -12
A109: BODY5X5发块20 | B109: FC5*5BW20 | D109: =VLOOKUP(B:B,[1]库存明细!$D:$H,5,0) -> 15 | E109: -15
A110: BODY5*5中分发块10 | B110: MC5*5BW10 | D110: =VLOOKUP(B:B,[1]库存明细!$D:$H,5,0) -> 7 | E110: -7
A111: BODY5*5中分发块12 | B111: MC5*5BW12 | D111: =VLOOKUP(B:B,[1]库存明细!$D:$H,5,0) -> 8 | E111: -8
A112: BODY5*5中分发块14 | B112: MC5*5BW14 | D112: =VLOOKUP(B:B,[1]库存明细!$D:$H,5,0) -> 11 | E112: -11
A113: BODY5*5中分发块16 | B113: MC5*5BW16 | D113: =VLOOKUP(B:B,[1]库存明细!$D:$H,5,0) -> 9 | E113: -9
A114: BODY5*5中分发块18 | B114: MC5*5BW18 | D114: =VLOOKUP(B:B,[1]库存明细!$D:$H,5,0) -> 14 | E114: -14
A115: BODY5*5中分发块20 | B115: MC5*5BW20 | D115: =VLOOKUP(B:B,[1]库存明细!$D:$H,5,0) -> 6 | E115: -6
A116: BODY6*6自由分发块10 | B116: FC6*6BW10 | D116: =VLOOKUP(B:B,[1]库存明细!$D:$H,5,0) -> 9 | E116: -9
A117: BODY6*6自由分发块12 | B117: FC6*6BW12 | D117: =VLOOKUP(B:B,[1]库存明细!$D:$H,5,0) -> 18 | E117: -18
A118: BODY6*6自由分发块14 | B118: FC6*6BW14 | D118: =VLOOKUP(B:B,[1]库存明细!$D:$H,5,0) -> 13 | E118: -13
A119: BODY6*6自由分发块16 | B119: FC6*6BW16 | D119: =VLOOKUP(B:B,[1]库存明细!$D:$H,5,0) -> 11 | E119: -11
A120: BODY6*6自由分发块18 | B120: FC6*6BW18 | D120: =VLOOKUP(B:B,[1]库存明细!$D:$H,5,0) -> 9 | E120: -9
A121: BODY6*6自由分发块20 | B121: FC6*6BW20 | D121: =VLOOKUP(B:B,[1]库存明细!$D:$H,5,0) -> 11 | E121: -11
A122: 中分BODY6*6发块10 | B122: MC6*6BW10 | D122: =VLOOKUP(B:B,[1]库存明细!$D:$H,5,0) -> 5 | E122: -5
A123: 中分BODY6*6发块12 | B123: MC6*6BW12 | D123: =VLOOKUP(B:B,[1]库存明细!$D:$H,5,0) -> 5 | E123: -5
A124: 中分BODY6*6发块14 | B124: MC6*6BW14 | D124: =VLOOKUP(B:B,[1]库存明细!$D:$H,5,0) -> 7 | E124: -7
A125: 中分BODY6*6发块16 | B125: MC6*6BW16 | D125: =VLOOKUP(B:B,[1]库存明细!$D:$H,5,0) -> 12 | E125: -12
A126: 中分BODY6*6发块18 | B126: MC6*6BW18 | D126: =VLOOKUP(B:B,[1]库存明细!$D:$H,5,0) -> 8 | E126: -8
A127: 中分BODY6*6发块20 | B127: MC6*6BW20 | D127: =VLOOKUP(B:B,[1]库存明细!$D:$H,5,0) -> 14 | E127: -14
A128: BODY蕾丝前头8 | B128: FROBW8 | D128: =VLOOKUP(B:B,[1]库存明细!$D:$H,5,0) -> 9 | E128: -9
A129: BODY蕾丝前头10 | B129: FROBW10 | D129: =VLOOKUP(B:B,[1]库存明细!$D:$H,5,0) -> 39 | E129: -39
A130: BODY蕾丝前头12 | B130: FROBW12 | D130: =VLOOKUP(B:B,[1]库存明细!$D:$H,5,0) -> 20 | E130: -20
A131: BODY蕾丝前头14 | B131: FROBW14 | D131: =VLOOKUP(B:B,[1]库存明细!$D:$H,5,0) -> 27 | E131: =C131-D131 -> -27
A132: BODY蕾丝前头16 | B132: FROBW16 | D132: =VLOOKUP(B:B,[1]库存明细!$D:$H,5,0) -> 23 | E132: -23
A133: BODY蕾丝前头18 | B133: FROBW18 | D133: =VLOOKUP(B:B,[1]库存明细!$D:$H,5,0) -> 24 | E133: -24
A134: BODY蕾丝前头20 | B134: FROBW20 | D134: =VLOOKUP(B:B,[1]库存明细!$D:$H,5,0) -> 26 | E134: -26
A135: BODY13*6大前头10 | B135: FRO13*6BW10 | D135: =VLOOKUP(B:B,[1]库存明细!$D:$H,5,0) -> 8 | E135: -8
A136: BODY13*6大前头12 | B136: FRO13*6BW12 | D136: =VLOOKUP(B:B,[1]库存明细!$D:$H,5,0) -> 6 | E136: -6
A137: BODY13*6大前头14 | B137: FRO13*6BW14 | D137: =VLOOKUP(B:B,[1]库存明细!$D:$H,5,0) -> 9 | E137: -9
A138: BODY13*6大前头16 | B138: FRO13*6BW16 | D138: =VLOOKUP(B:B,[1]库存明细!$D:$H,5,0) -> 9 | E138: -9
A139: BODY13*6大前头18 | B139: FRO13*6BW18 | D139: =VLOOKUP(B:B,[1]库存明细!$D:$H,5,0) -> 11 | E139: -11
A140: BODY13*6大前头20 | B140: FRO13*6BW20 | D140: =VLOOKUP(B:B,[1]库存明细!$D:$H,5,0) -> 9 | E140: -9
A141: BODY单条8 | B141: BODY8 | D141: =VLOOKUP(B:B,[1]库存明细!$D:$H,5,0) -> 40 | E141: -40
A142: BODY单条10 | B142: BODY10 | D142: =VLOOKUP(B:B,[1]库存明细!$D:$H,5,0) -> 46 | E142: -46
A143: BODY单条12 | B143: BODY12 | D143: =VLOOKUP(B:B,[1]库存明细!$D:$H,5,0) -> 165 | E143: -165
A144: BODY单条14 | B144: BODY14 | D144: =VLOOKUP(B:B,[1]库存明细!$D:$H,5,0) -> 100 | E144: -100
A145: BODY单条16 | B145: BODY16 | D145: =VLOOKUP(B:B,[1]库存明细!$D:$H,5,0) -> 61 | E145: -61
A146: BODY单条18 | B146: BODY18 | D146: =VLOOKUP(B:B,[1]库存明细!$D:$H,5,0) -> 106 | E146: -106
A147: BODY单条20 | B147: BODY20 | D147: =VLOOKUP(B:B,[1]库存明细!$D:$H,5,0) -> 125 | E147: -125
A148: BODY单条22 | B148: BODY22 | D148: =VLOOKUP(B:B,[1]库存明细!$D:$H,5,0) -> 80 | E148: -80
A149: BODY单条24 | B149: BODY24 | D149: =VLOOKUP(B:B,[1]库存明细!$D:$H,5,0) -> 98 | E149: -98
A150: BODY单条26 | B150: BODY26 | D150: =VLOOKUP(B:B,[1]库存明细!$D:$H,5,0) -> 47 | E150: -47
A151: BODY单条28 | B151: BODY28 | D151: =VLOOKUP(B:B,[1]库存明细!$D:$H,5,0) -> 12 | E151: -12
A152: BODY单条30 | B152: BODY30 | D152: =VLOOKUP(B:B,[1]库存明细!$D:$H,5,0) -> 16 | E152: -16
A153: BODY2x6发块10 | B153: MC2*6BW10 | D153: =VLOOKUP(B:B,[1]库存明细!$D:$H,5,0) -> 8 | E153: -8
A154: BODY2x6发块12 | B154: MC2*6BW12 | D154: =VLOOKUP(B:B,[1]库存明细!$D:$H,5,0) -> 6 | E154: -6
A155: BODY2x6发块14 | B155: MC2*6BW14 | D155: =VLOOKUP(B:B,[1]库存明细!$D:$H,5,0) -> 4 | E155: -4
A156: BODY2x6发块16 | B156: MC2*6BW16 | D156: =VLOOKUP(B:B,[1]库存明细!$D:$H,5,0) -> 9 | E156: -9
A157: BODY2x6发块18 | B157: MC2*6BW18 | D157: =VLOOKUP(B:B,[1]库存明细!$D:$H,5,0) -> 5 | E157: -5
A158: BODY2x6发块20 | B158: MC2*6BW20 | D158: =VLOOKUP(B:B,[1]库存明细!$D:$H,5,0) -> 14 | E158: -14
A159: BODY4*4三分发块8 | B159: TCBW8 | D159: =VLOOKUP(B:B,[1]库存明细!$D:$H,5,0) -> 4 | E159: -4
A160: BODY4*4三分发块10 | B160: TCBW10 | D160: =VLOOKUP(B:B,[1]库存明细!$D:$H,5,0) -> 10 | E160: -10
A161: BODY4*4三分发块12 | B161: TCBW12 | D161: =VLOOKUP(B:B,[1]库存明细!$D:$H,5,0) -> 9 | E161: -9
A162: BODY4*4三分发块14 | B162: TCBW14 | D162: =VLOOKUP(B:B,[1]库存明细!$D:$H,5,0) -> 8 | E162: -8
A163: BODY4*4三分发块16 | B163: TCBW16 | D163: =VLOOKUP(B:B,[1]库存明细!$D:$H,5,0) -> 19 | E163: -19
A164: BODY4*4三分发块18 | B164: TCBW18 | D164: =VLOOKUP(B:B,[1]库存明细!$D:$H,5,0) -> 10 | E164: -10
A165: BODY4*4三分发块20 | B165: TCBW20 | D165: =VLOOKUP(B:B,[1]库存明细!$D:$H,5,0) -> 5 | E165: -5
A166: 透明BODY4X4发块10 | B166: TRFCBW10 | D166: =VLOOKUP(B:B,[1]库存明细!$D:$H,5,0) -> 11 | E166: -11
A167: 透明BODY4X4发块12 | B167: TRFCBW12 | D167: =VLOOKUP(B:B,[1]库存明细!$D:$H,5,0) -> 14 | E167: -14
A168: 透明BODY4X4发块14 | B168: TRFCBW14 | D168: =VLOOKUP(B:B,[1]库存明细!$D:$H,5,0) -> 8 | E168: -8
A169: 透明BODY4X4发块16 | B169: TRFCBW16 | D169: =VLOOKUP(B:B,[1]库存明细!$D:$H,5,0) -> 23 | E169: -23
A170: 透明BODY4X4发块18 | B170: TRFCBW18 | D170: =VLOOKUP(B:B,[1]库存明细!$D:$H,5,0) -> 19 | E170: -19
A171: 透明BODY4X4发块20 | B171: TRFCBW20 | D171: =VLOOKUP(B:B,[1]库存明细!$D:$H,5,0) -> 10 | E171: -10
A172: 透明蕾丝 BODY5*5发块12 | B172: TRFC5*5BW12 | D172: =VLOOKUP(B:B,[1]库存明细!$D:$H,5,0) -> 8 | E172: -8
A173: 透明蕾丝 BODY5*5发块14 | B173: TRFC5*5BW14 | D173: =VLOOKUP(B:B,[1]库存明细!$D:$H,5,0) -> 9 | E173: -9
A174: 透明蕾丝 BODY5*5发块16 | B174: TRFC5*5BW16 | D174: =VLOOKUP(B:B,[1]库存明细!$D:$H,5,0) -> 12 | E174: -12
A175: 透明蕾丝 BODY5*5发块18 | B175: TRFC5*5BW18 | D175: =VLOOKUP(B:B,[1]库存明细!$D:$H,5,0) -> 10 | E175: -10
A176: 透明蕾丝 BODY5*5发块20 | B176: TRFC5*5BW20 | D176: =VLOOKUP(B:B,[1]库存明细!$D:$H,5,0) -> 7 | E176: -7
A177: 透明BODY蕾丝前头10 | B177: TRFROBW10 | D177: =VLOOKUP(B:B,[1]库存明细!$D:$H,5,0) -> 8 | E177: -8
A178: 透明BODY蕾丝前头12 | B178: TRFROBW12 | D178: =VLOOKUP(B:B,[1]库存明细!$D:$H,5,0) -> 6 | E178: -6
A179: 透明BODY蕾丝前头14 | B179: TRFROBW14 | D179: =VLOOKUP(B:B,[1]库存明细!$D:$H,5,0) -> 17 | E179: -17
A180: 透明BODY蕾丝前头16 | B180: TRFROBW16 | D180: =VLOOKUP(B:B,[1]库存明细!$D:$H,5,0) -> 13 | E180: -13
A181: 透明BODY蕾丝前头18 | B181: TRFROBW18 | D181: =VLOOKUP(B:B,[1]库存明细!$D:$H,5,0) -> 9 | E181: -9
A182: 透明BODY蕾丝前头20 | B182: TRFROBW20 | D182: =VLOOKUP(B:B,[1]库存明细!$D:$H,5,0) -> 9 | E182: -9
A183: DEEP4*4发块10 | B183: FCDEEP10 | D183: =VLOOKUP(B:B,[1]库存明细!$D:$H,5,0) -> 13 | E183: -13
A184: DEEP4*4发块12 | B184: FCDEEP12 | D184: =VLOOKUP(B:B,[1]库存明细!$D:$H,5,0) -> 26 | E184: -26
A185: DEEP4*4发块14 | B185: FCDEEP14 | D185: =VLOOKUP(B:B,[1]库存明细!$D:$H,5,0) -> 27 | E185: -27
A186: DEEP4*4发块16 | B186: FCDEEP16 | D186: =VLOOKUP(B:B,[1]库存明细!$D:$H,5,0) -> 22 | E186: -22
A187: DEEP4*4发块18 | B187: FCDEEP18 | D187: =VLOOKUP(B:B,[1]库存明细!$D:$H,5,0) -> 28 | E187: -28
A188: DEEP4*4发块20 | B188: FCDEEP20 | D188: =VLOOKUP(B:B,[1]库存明细!$D:$H,5,0) -> 14 | E188: -14
A189: DEEP中分发块10 | B189: MCDEEP10 | D189: =VLOOKUP(B:B,[1]库存明细!$D:$H,5,0) -> 10 | E189: -10
A190: DEEP中分发块12 | B190: MCDEEP12 | D190: =VLOOKUP(B:B,[1]库存明细!$D:$H,5,0) -> 10 | E190: -10
A191: DEEP中分发块14 | B191: MCDEEP14 | D191: =VLOOKUP(B:B,[1]库存明细!$D:$H,5,0) -> 23 | E191: -23
A192: DEEP中分发块16 | B192: MCDEEP16 | D192: =VLOOKUP(B:B,[1]库存明细!$D:$H,5,0) -> 8 | E192: -8
A193: DEEP中分发块18 | B193: MCDEEP18 | D193: =VLOOKUP(B:B,[1]库存明细!$D:$H,5,0) -> 16 | E193: -16
A194: DEEP中分发块20 | B194: MCDEEP20 | D194: =VLOOKUP(B:B,[1]库存明细!$D:$H,5,0) -> 14 | E194: -14
A195: DEEP三分发块10 | B195: TCDEEP10 | D195: =VLOOKUP(B:B,[1]库存明细!$D:$H,5,0) -> 7 | E195: =C195-D195 -> -7
A196: DEEP三分发块12 | B196: TCDEEP12 | D196: =VLOOKUP(B:B,[1]库存明细!$D:$H,5,0) -> 12 | E196: -12
A197: DEEP三分发块14 | B197: TCDEEP14 | D197: =VLOOKUP(B:B,[1]库存明细!$D:$H,5,0) -> 7 | E197: -7
A198: DEEP三分发块16 | B198: TCDEEP16 | D198: =VLOOKUP(B:B,[1]库存明细!$D:$H,5,0) -> 9 | E198: -9
A199: DEEP三分发块18 | B199: TCDEEP18 | D199: =VLOOKUP(B:B,[1]库存明细!$D:$H,5,0) -> 11 | E199: -11
A200: DEEP三分发块20 | B200: TCDEEP20 | D200: =VLOOKUP(B:B,[1]库存明细!$D:$H,5,0) -> 9 | E200: -9
... 525 more rows

Sheet 12.02待再次确认
A1: 尺组合 | B1: 条码 | C1: 12.02发货后发货仓库存清点 | D1: ERP库存 | E1: 差异 | F1: 12.03发货后再次确认
A2: 613直发4*4BOB头套8 | B2: 613STW4*4BOB8 | D2: =VLOOKUP(B:B,[1]库存明细!$D:$H,5,0) -> 262 | E2: =C2-D2 -> -262
A3: 613直发4*4BOB头套10 | B3: 613STW4*4BOB10 | D3: =VLOOKUP(B:B,[1]库存明细!$D:$H,5,0) -> 36 | E3: -36
A4: 直条4x4发块8 | B4: FCSTW8 | D4: =VLOOKUP(B:B,[1]库存明细!$D:$H,5,0) -> 13 | E4: -13
A5: 直条4x4发块10 | B5: FCSTW10 | D5: =VLOOKUP(B:B,[1]库存明细!$D:$H,5,0) -> 42 | E5: -42
A6: 直条4x4发块12 | B6: FCSTW12 | D6: =VLOOKUP(B:B,[1]库存明细!$D:$H,5,0) -> 18 | E6: -18
A7: 直条4x4发块14 | B7: FCSTW14 | D7: =VLOOKUP(B:B,[1]库存明细!$D:$H,5,0) -> 31 | E7: -31
A8: 直条4x4发块16 | B8: FCSTW16 | D8: =VLOOKUP(B:B,[1]库存明细!$D:$H,5,0) -> 25 | E8: -25
A9: 直条4x4发块18 | B9: FCSTW18 | D9: =VLOOKUP(B:B,[1]库存明细!$D:$H,5,0) -> 23 | E9: -23
A10: 直条4x4发块20 | B10: FCSTW20 | D10: =VLOOKUP(B:B,[1]库存明细!$D:$H,5,0) -> 21 | E10: -21
A11: 中分直条4x4发块8 | B11: MCSTW8 | D11: =VLOOKUP(B:B,[1]库存明细!$D:$H,5,0) -> 9 | E11: -9
A12: 中分直条4x4发块10 | B12: MCSTW10 | D12: =VLOOKUP(B:B,[1]库存明细!$D:$H,5,0) -> 14 | E12: -14
A13: 中分直条4x4发块12 | B13: MCSTW12 | D13: =VLOOKUP(B:B,[1]库存明细!$D:$H,5,0) -> 8 | E13: -8
A14: 中分直条4x4发块14 | B14: MCSTW14 | D14: =VLOOKUP(B:B,[1]库存明细!$D:$H,5,0) -> 29 | E14: -29
A15: 中分直条4x4发块16 | B15: MCSTW16 | D15: =VLOOKUP(B:B,[1]库存明细!$D:$H,5,0) -> 13 | E15: -13
A16: 中分直条4x4发块18 | B16: MCSTW18 | D16: =VLOOKUP(B:B,[1]库存明细!$D:$H,5,0) -> 28 | E16: -28
A17: 中分直条4x4发块20 | B17: MCSTW20 | D17: =VLOOKUP(B:B,[1]库存明细!$D:$H,5,0) -> 20 | E17: -20
A18: 直条5x5发块10 | B18: FC5*5STW10 | D18: =VLOOKUP(B:B,[1]库存明细!$D:$H,5,0) -> 10 | E18: -10
A19: 直条5x5发块12 | B19: FC5*5STW12 | D19: =VLOOKUP(B:B,[1]库存明细!$D:$H,5,0) -> 12 | E19: -12
A20: 直条5x5发块14 | B20: FC5*5STW14 | D20: =VLOOKUP(B:B,[1]库存明细!$D:$H,5,0) -> 20 | E20: -20
A21: 直条5x5发块16 | B21: FC5*5STW16 | D21: =VLOOKUP(B:B,[1]库存明细!$D:$H,5,0) -> 16 | E21: -16
A22: 直条5x5发块18 | B22: FC5*5STW18 | D22: =VLOOKUP(B:B,[1]库存明细!$D:$H,5,0) -> 19 | E22: -19
A23: 直条5x5发块20 | B23: FC5*5STW20 | D23: =VLOOKUP(B:B,[1]库存明细!$D:$H,5,0) -> 17 | E23: -17
A24: 中分直条5x5发块10 | B24: MC5*5STW10 | D24: =VLOOKUP(B:B,[1]库存明细!$D:$H,5,0) -> 7 | E24: -7
A25: 中分直条5x5发块12 | B25: MC5*5STW12 | D25: =VLOOKUP(B:B,[1]库存明细!$D:$H,5,0) -> 12 | E25: -12
A26: 中分直条5x5发块14 | B26: MC5*5STW14 | D26: =VLOOKUP(B:B,[1]库存明细!$D:$H,5,0) -> 10 | E26: -10
A27: 中分直条5x5发块16 | B27: MC5*5STW16 | D27: =VLOOKUP(B:B,[1]库存明细!$D:$H,5,0) -> 12 | E27: -12
A28: 中分直条5x5发块18 | B28: MC5*5STW18 | D28: =VLOOKUP(B:B,[1]库存明细!$D:$H,5,0) -> 18 | E28: -18
A29: 中分直条5x5发块20 | B29: MC5*5STW20 | D29: =VLOOKUP(B:B,[1]库存明细!$D:$H,5,0) -> 12 | E29: -12
A30: 直条6*6自由分发块12 | B30: FC6*6STW12 | D30: =VLOOKUP(B:B,[1]库存明细!$D:$H,5,0) -> 18 | E30: -18
A31: 直条6*6自由分发块14 | B31: FC6*6STW14 | D31: =VLOOKUP(B:B,[1]库存明细!$D:$H,5,0) -> 14 | E31: -14
A32: 直条6*6自由分发块16 | B32: FC6*6STW16 | D32: =VLOOKUP(B:B,[1]库存明细!$D:$H,5,0) -> 16 | E32: -16
A33: 直条6*6自由分发块18 | B33: FC6*6STW18 | D33: =VLOOKUP(B:B,[1]库存明细!$D:$H,5,0) -> 21 | E33: -21
A34: 直条6*6自由分发块20 | B34: FC6*6STW20 | D34: =VLOOKUP(B:B,[1]库存明细!$D:$H,5,0) -> 9 | E34: -9
A35: 中分直条6*6发块10 | B35: MC6*6STW10 | D35: =VLOOKUP(B:B,[1]库存明细!$D:$H,5,0) -> 5 | E35: -5
A36: 中分直条6*6发块12 | B36: MC6*6STW12 | D36: =VLOOKUP(B:B,[1]库存明细!$D:$H,5,0) -> 10 | E36: -10
A37: 中分直条6*6发块14 | B37: MC6*6STW14 | D37: =VLOOKUP(B:B,[1]库存明细!$D:$H,5,0) -> 9 | E37: -9
A38: 中分直条6*6发块16 | B38: MC6*6STW16 | D38: =VLOOKUP(B:B,[1]库存明细!$D:$H,5,0) -> 11 | E38: -11
A39: 中分直条6*6发块18 | B39: MC6*6STW18 | D39: =VLOOKUP(B:B,[1]库存明细!$D:$H,5,0) -> 27 | E39: -27
A40: 中分直条6*6发块20 | B40: MC6*6STW20 | D40: =VLOOKUP(B:B,[1]库存明细!$D:$H,5,0) -> 9 | E40: -9
A41: 直发蕾丝前头8 | B41: FROSTW8 | D41: =VLOOKUP(B:B,[1]库存明细!$D:$H,5,0) -> 24 | E41: -24
A42: 直发蕾丝前头10 | B42: FROSTW10 | D42: =VLOOKUP(B:B,[1]库存明细!$D:$H,5,0) -> 41 | E42: -41
A43: 直发蕾丝前头12 | B43: FROSTW12 | D43: =VLOOKUP(B:B,[1]库存明细!$D:$H,5,0) -> 29 | E43: -29
A44: 直发蕾丝前头14 | B44: FROSTW14 | D44: =VLOOKUP(B:B,[1]库存明细!$D:$H,5,0) -> 11 | E44: -11
A45: 直发蕾丝前头16 | B45: FROSTW16 | D45: =VLOOKUP(B:B,[1]库存明细!$D:$H,5,0) -> 10 | E45: -10
A46: 直发蕾丝前头18 | B46: FROSTW18 | D46: =VLOOKUP(B:B,[1]库存明细!$D:$H,5,0) -> 24 | E46: -24
A47: 直发蕾丝前头20 | B47: FROSTW20 | D47: =VLOOKUP(B:B,[1]库存明细!$D:$H,5,0) -> 25 | E47: -25
A48: 直条13*6大前头10 | B48: FRO13*6STW10 | D48: =VLOOKUP(B:B,[1]库存明细!$D:$H,5,0) -> 12 | E48: -12
A49: 直条13*6大前头12 | B49: FRO13*6STW12 | D49: =VLOOKUP(B:B,[1]库存明细!$D:$H,5,0) -> 11 | E49: -11
A50: 直条13*6大前头14 | B50: FRO13*6STW14 | D50: =VLOOKUP(B:B,[1]库存明细!$D:$H,5,0) -> 7 | E50: -7
A51: 直条13*6大前头16 | B51: FRO13*6STW16 | D51: =VLOOKUP(B:B,[1]库存明细!$D:$H,5,0) -> 6 | E51: -6
A52: 直条13*6大前头18 | B52: FRO13*6STW18 | D52: =VLOOKUP(B:B,[1]库存明细!$D:$H,5,0) -> 8 | E52: -8
A53: 直条13*6大前头20 | B53: FRO13*6STW20 | D53: =VLOOKUP(B:B,[1]库存明细!$D:$H,5,0) -> 13 | E53: -13
A54: 直发单条8 | B54: STW8 | D54: =VLOOKUP(B:B,[1]库存明细!$D:$H,5,0) -> 23 | E54: -23
A55: 直发单条10 | B55: STW10 | D55: =VLOOKUP(B:B,[1]库存明细!$D:$H,5,0) -> 38 | E55: -38
A56: 直发单条12 | B56: STW12 | D56: =VLOOKUP(B:B,[1]库存明细!$D:$H,5,0) -> 62 | E56: -62
A57: 直发单条14 | B57: STW14 | D57: =VLOOKUP(B:B,[1]库存明细!$D:$H,5,0) -> 48 | E57: -48
A58: 直发单条16 | B58: STW16 | D58: =VLOOKUP(B:B,[1]库存明细!$D:$H,5,0) -> 59 | E58: -59
A59: 直发单条18 | B59: STW18 | D59: =VLOOKUP(B:B,[1]库存明细!$D:$H,5,0) -> 88 | E59: -88
A60: 直发单条20 | B60: STW20 | D60: =VLOOKUP(B:B,[1]库存明细!$D:$H,5,0) -> 83 | E60: -83
A61: 直发单条22 | B61: STW22 | D61: =VLOOKUP(B:B,[1]库存明细!$D:$H,5,0) -> 77 | E61: -77
A62: 直发单条24 | B62: STW24 | D62: =VLOOKUP(B:B,[1]库存明细!$D:$H,5,0) -> 147 | E62: -147
A63: 直发单条26 | B63: STW26 | D63: =VLOOKUP(B:B,[1]库存明细!$D:$H,5,0) -> 38 | E63: -38
A64: 直发单条28 | B64: STW28 | D64: =VLOOKUP(B:B,[1]库存明细!$D:$H,5,0) -> 35 | E64: -35
A65: 直发单条30 | B65: STW30 | D65: =VLOOKUP(B:B,[1]库存明细!$D:$H,5,0) -> 25 | E65: -25
A66: 直条2x6发块10 | B66: MC2*6STW10 | D66: =VLOOKUP(B:B,[1]库存明细!$D:$H,5,0) -> 15 | E66: =C66-D66 -> -15
A67: 直条2x6发块12 | B67: MC2*6STW12 | D67: =VLOOKUP(B:B,[1]库存明细!$D:$H,5,0) -> 14 | E67: -14
A68: 直条2x6发块14 | B68: MC2*6STW14 | D68: =VLOOKUP(B:B,[1]库存明细!$D:$H,5,0) -> 15 | E68: -15
A69: 直条2x6发块16 | B69: MC2*6STW16 | D69: =VLOOKUP(B:B,[1]库存明细!$D:$H,5,0) -> 10 | E69: -10
A70: 直条2x6发块18 | B70: MC2*6STW18 | D70: =VLOOKUP(B:B,[1]库存明细!$D:$H,5,0) -> 12 | E70: -12
A71: 直条2x6发块20 | B71: MC2*6STW20 | D71: =VLOOKUP(B:B,[1]库存明细!$D:$H,5,0) -> 6 | E71: -6
A72: 直条4*4三分发块10 | B72: TCSTW10 | D72: =VLOOKUP(B:B,[1]库存明细!$D:$H,5,0) -> 8 | E72: -8
A73: 直条4*4三分发块12 | B73: TCSTW12 | D73: =VLOOKUP(B:B,[1]库存明细!$D:$H,5,0) -> 5 | E73: -5
A74: 直条4*4三分发块14 | B74: TCSTW14 | D74: =VLOOKUP(B:B,[1]库存明细!$D:$H,5,0) -> 6 | E74: -6
A75: 直条4*4三分发块16 | B75: TCSTW16 | D75: =VLOOKUP(B:B,[1]库存明细!$D:$H,5,0) -> 11 | E75: -11
A76: 直条4*4三分发块18 | B76: TCSTW18 | D76: =VLOOKUP(B:B,[1]库存明细!$D:$H,5,0) -> 13 | E76: -13
A77: 直条4*4三分发块20 | B77: TCSTW20 | D77: =VLOOKUP(B:B,[1]库存明细!$D:$H,5,0) -> 8 | E77: -8
A78: 透明直发蕾丝前头12 | B78: TRFROSTW12 | D78: =VLOOKUP(B:B,[1]库存明细!$D:$H,5,0) -> 5 | E78: -5
A79: 透明直发蕾丝前头14 | B79: TRFROSTW14 | D79: =VLOOKUP(B:B,[1]库存明细!$D:$H,5,0) -> 28 | E79: -28
A80: 透明直发蕾丝前头16 | B80: TRFROSTW16 | D80: =VLOOKUP(B:B,[1]库存明细!$D:$H,5,0) -> 12 | E80: -12
A81: 透明直发蕾丝前头18 | B81: TRFROSTW18 | D81: =VLOOKUP(B:B,[1]库存明细!$D:$H,5,0) -> 14 | E81: -14
A82: 透明直发蕾丝前头20 | B82: TRFROSTW20 | D82: =VLOOKUP(B:B,[1]库存明细!$D:$H,5,0) -> 30 | E82: -30
A83: 透明直条4x4发块8 | B83: TRFCSTW8 | D83: =VLOOKUP(B:B,[1]库存明细!$D:$H,5,0) -> 7 | E83: -7
A84: 透明直条4x4发块10 | B84: TRFCSTW10 | D84: =VLOOKUP(B:B,[1]库存明细!$D:$H,5,0) -> 8 | E84: -8
A85: 透明直条4x4发块12 | B85: TRFCSTW12 | D85: =VLOOKUP(B:B,[1]库存明细!$D:$H,5,0) -> 13 | E85: -13
A86: 透明直条4x4发块14 | B86: TRFCSTW14 | D86: =VLOOKUP(B:B,[1]库存明细!$D:$H,5,0) -> 11 | E86: -11
A87: 透明直条4x4发块16 | B87: TRFCSTW16 | D87: =VLOOKUP(B:B,[1]库存明细!$D:$H,5,0) -> 14 | E87: -14
A88: 透明直条4x4发块18 | B88: TRFCSTW18 | D88: =VLOOKUP(B:B,[1]库存明细!$D:$H,5,0) -> 27 | E88: -27
A89: 透明直条4x4发块20 | B89: TRFCSTW20 | D89: =VLOOKUP(B:B,[1]库存明细!$D:$H,5,0) -> 10 | E89: -10
A90: BODY4X4发块8 | B90: FCBW8 | D90: =VLOOKUP(B:B,[1]库存明细!$D:$H,5,0) -> 15 | E90: -15
A91: BODY4X4发块10 | B91: FCBW10 | D91: =VLOOKUP(B:B,[1]库存明细!$D:$H,5,0) -> 17 | E91: -17
A92: BODY4X4发块12 | B92: FCBW12 | D92: =VLOOKUP(B:B,[1]库存明细!$D:$H,5,0) -> 32 | E92: -32
A93: BODY4X4发块14 | B93: FCBW14 | D93: =VLOOKUP(B:B,[1]库存明细!$D:$H,5,0) -> 28 | E93: -28
A94: BODY4X4发块16 | B94: FCBW16 | D94: =VLOOKUP(B:B,[1]库存明细!$D:$H,5,0) -> 29 | E94: -29
A95: BODY4X4发块18 | B95: FCBW18 | D95: =VLOOKUP(B:B,[1]库存明细!$D:$H,5,0) -> 32 | E95: -32
A96: BODY4X4发块20 | B96: FCBW20 | D96: =VLOOKUP(B:B,[1]库存明细!$D:$H,5,0) -> 16 | E96: -16
A97: 中分BODY4X4发块8 | B97: MCBW8 | D97: =VLOOKUP(B:B,[1]库存明细!$D:$H,5,0) -> 14 | E97: -14
A98: 中分BODY4X4发块10 | B98: MCBW10 | D98: =VLOOKUP(B:B,[1]库存明细!$D:$H,5,0) -> 28 | E98: -28
A99: 中分BODY4X4发块12 | B99: MCBW12 | D99: =VLOOKUP(B:B,[1]库存明细!$D:$H,5,0) -> 10 | E99: -10
A100: 中分BODY4X4发块14 | B100: MCBW14 | D100: =VLOOKUP(B:B,[1]库存明细!$D:$H,5,0) -> 25 | E100: -25
A101: 中分BODY4X4发块16 | B101: MCBW16 | D101: =VLOOKUP(B:B,[1]库存明细!$D:$H,5,0) -> 15 | E101: -15
A102: 中分BODY4X4发块18 | B102: MCBW18 | D102: =VLOOKUP(B:B,[1]库存明细!$D:$H,5,0) -> 13 | E102: -13
A103: 中分BODY4X4发块20 | B103: MCBW20 | D103: =VLOOKUP(B:B,[1]库存明细!$D:$H,5,0) -> 18 | E103: -18
A104: BODY5X5发块10 | B104: FC5*5BW10 | D104: =VLOOKUP(B:B,[1]库存明细!$D:$H,5,0) -> 5 | E104: -5
A105: BODY5X5发块12 | B105: FC5*5BW12 | D105: =VLOOKUP(B:B,[1]库存明细!$D:$H,5,0) -> 15 | E105: -15
A106: BODY5X5发块14 | B106: FC5*5BW14 | D106: =VLOOKUP(B:B,[1]库存明细!$D:$H,5,0) -> 15 | E106: -15
A107: BODY5X5发块16 | B107: FC5*5BW16 | D107: =VLOOKUP(B:B,[1]库存明细!$D:$H,5,0) -> 14 | E107: -14
A108: BODY5X5发块18 | B108: FC5*5BW18 | D108: =VLOOKUP(B:B,[1]库存明细!$D:$H,5,0) -> 12 | E108: -12
A109: BODY5X5发块20 | B109: FC5*5BW20 | D109: =VLOOKUP(B:B,[1]库存明细!$D:$H,5,0) -> 15 | E109: -15
A110: BODY5*5中分发块10 | B110: MC5*5BW10 | D110: =VLOOKUP(B:B,[1]库存明细!$D:$H,5,0) -> 7 | E110: -7
A111: BODY5*5中分发块12 | B111: MC5*5BW12 | D111: =VLOOKUP(B:B,[1]库存明细!$D:$H,5,0) -> 8 | E111: -8
A112: BODY5*5中分发块14 | B112: MC5*5BW14 | D112: =VLOOKUP(B:B,[1]库存明细!$D:$H,5,0) -> 11 | E112: -11
A113: BODY5*5中分发块16 | B113: MC5*5BW16 | D113: =VLOOKUP(B:B,[1]库存明细!$D:$H,5,0) -> 9 | E113: -9
A114: BODY5*5中分发块18 | B114: MC5*5BW18 | D114: =VLOOKUP(B:B,[1]库存明细!$D:$H,5,0) -> 14 | E114: -14
A115: BODY5*5中分发块20 | B115: MC5*5BW20 | D115: =VLOOKUP(B:B,[1]库存明细!$D:$H,5,0) -> 6 | E115: -6
A116: BODY6*6自由分发块10 | B116: FC6*6BW10 | D116: =VLOOKUP(B:B,[1]库存明细!$D:$H,5,0) -> 9 | E116: -9
A117: BODY6*6自由分发块12 | B117: FC6*6BW12 | D117: =VLOOKUP(B:B,[1]库存明细!$D:$H,5,0) -> 18 | E117: -18
A118: BODY6*6自由分发块14 | B118: FC6*6BW14 | D118: =VLOOKUP(B:B,[1]库存明细!$D:$H,5,0) -> 13 | E118: -13
A119: BODY6*6自由分发块16 | B119: FC6*6BW16 | D119: =VLOOKUP(B:B,[1]库存明细!$D:$H,5,0) -> 11 | E119: -11
A120: BODY6*6自由分发块18 | B120: FC6*6BW18 | D120: =VLOOKUP(B:B,[1]库存明细!$D:$H,5,0) -> 9 | E120: -9
A121: BODY6*6自由分发块20 | B121: FC6*6BW20 | D121: =VLOOKUP(B:B,[1]库存明细!$D:$H,5,0) -> 11 | E121: -11
A122: 中分BODY6*6发块10 | B122: MC6*6BW10 | D122: =VLOOKUP(B:B,[1]库存明细!$D:$H,5,0) -> 5 | E122: -5
A123: 中分BODY6*6发块12 | B123: MC6*6BW12 | D123: =VLOOKUP(B:B,[1]库存明细!$D:$H,5,0) -> 5 | E123: -5
A124: 中分BODY6*6发块14 | B124: MC6*6BW14 | D124: =VLOOKUP(B:B,[1]库存明细!$D:$H,5,0) -> 7 | E124: -7
A125: 中分BODY6*6发块16 | B125: MC6*6BW16 | D125: =VLOOKUP(B:B,[1]库存明细!$D:$H,5,0) -> 12 | E125: -12
A126: 中分BODY6*6发块18 | B126: MC6*6BW18 | D126: =VLOOKUP(B:B,[1]库存明细!$D:$H,5,0) -> 8 | E126: -8
A127: 中分BODY6*6发块20 | B127: MC6*6BW20 | D127: =VLOOKUP(B:B,[1]库存明细!$D:$H,5,0) -> 14 | E127: -14
A128: BODY蕾丝前头8 | B128: FROBW8 | D128: =VLOOKUP(B:B,[1]库存明细!$D:$H,5,0) -> 9 | E128: -9
A129: BODY蕾丝前头10 | B129: FROBW10 | D129: =VLOOKUP(B:B,[1]库存明细!$D:$H,5,0) -> 39 | E129: -39
A130: BODY蕾丝前头12 | B130: FROBW12 | D130: =VLOOKUP(B:B,[1]库存明细!$D:$H,5,0) -> 20 | E130: =C130-D130 -> -20
A131: BODY蕾丝前头14 | B131: FROBW14 | D131: =VLOOKUP(B:B,[1]库存明细!$D:$H,5,0) -> 27 | E131: -27
A132: BODY蕾丝前头16 | B132: FROBW16 | D132: =VLOOKUP(B:B,[1]库存明细!$D:$H,5,0) -> 23 | E132: -23
A133: BODY蕾丝前头18 | B133: FROBW18 | D133: =VLOOKUP(B:B,[1]库存明细!$D:$H,5,0) -> 24 | E133: -24
A134: BODY蕾丝前头20 | B134: FROBW20 | D134: =VLOOKUP(B:B,[1]库存明细!$D:$H,5,0) -> 26 | E134: -26
A135: BODY13*6大前头10 | B135: FRO13*6BW10 | D135: =VLOOKUP(B:B,[1]库存明细!$D:$H,5,0) -> 8 | E135: -8
A136: BODY13*6大前头12 | B136: FRO13*6BW12 | D136: =VLOOKUP(B:B,[1]库存明细!$D:$H,5,0) -> 6 | E136: -6
A137: BODY13*6大前头14 | B137: FRO13*6BW14 | D137: =VLOOKUP(B:B,[1]库存明细!$D:$H,5,0) -> 9 | E137: -9
A138: BODY13*6大前头16 | B138: FRO13*6BW16 | D138: =VLOOKUP(B:B,[1]库存明细!$D:$H,5,0) -> 9 | E138: -9
A139: BODY13*6大前头18 | B139: FRO13*6BW18 | D139: =VLOOKUP(B:B,[1]库存明细!$D:$H,5,0) -> 11 | E139: -11
A140: BODY13*6大前头20 | B140: FRO13*6BW20 | D140: =VLOOKUP(B:B,[1]库存明细!$D:$H,5,0) -> 9 | E140: -9
A141: BODY单条8 | B141: BODY8 | D141: =VLOOKUP(B:B,[1]库存明细!$D:$H,5,0) -> 40 | E141: -40
A142: BODY单条10 | B142: BODY10 | D142: =VLOOKUP(B:B,[1]库存明细!$D:$H,5,0) -> 46 | E142: -46
A143: BODY单条12 | B143: BODY12 | D143: =VLOOKUP(B:B,[1]库存明细!$D:$H,5,0) -> 165 | E143: -165
A144: BODY单条14 | B144: BODY14 | D144: =VLOOKUP(B:B,[1]库存明细!$D:$H,5,0) -> 100 | E144: -100
A145: BODY单条16 | B145: BODY16 | D145: =VLOOKUP(B:B,[1]库存明细!$D:$H,5,0) -> 61 | E145: -61
A146: BODY单条18 | B146: BODY18 | D146: =VLOOKUP(B:B,[1]库存明细!$D:$H,5,0) -> 106 | E146: -106
A147: BODY单条20 | B147: BODY20 | D147: =VLOOKUP(B:B,[1]库存明细!$D:$H,5,0) -> 125 | E147: -125
A148: BODY单条22 | B148: BODY22 | D148: =VLOOKUP(B:B,[1]库存明细!$D:$H,5,0) -> 80 | E148: -80
A149: BODY单条24 | B149: BODY24 | D149: =VLOOKUP(B:B,[1]库存明细!$D:$H,5,0) -> 98 | E149: -98
A150: BODY单条26 | B150: BODY26 | D150: =VLOOKUP(B:B,[1]库存明细!$D:$H,5,0) -> 47 | E150: -47
A151: BODY单条28 | B151: BODY28 | D151: =VLOOKUP(B:B,[1]库存明细!$D:$H,5,0) -> 12 | E151: -12
A152: BODY单条30 | B152: BODY30 | D152: =VLOOKUP(B:B,[1]库存明细!$D:$H,5,0) -> 16 | E152: -16
A153: BODY2x6发块10 | B153: MC2*6BW10 | D153: =VLOOKUP(B:B,[1]库存明细!$D:$H,5,0) -> 8 | E153: -8
A154: BODY2x6发块12 | B154: MC2*6BW12 | D154: =VLOOKUP(B:B,[1]库存明细!$D:$H,5,0) -> 6 | E154: -6
A155: BODY2x6发块14 | B155: MC2*6BW14 | D155: =VLOOKUP(B:B,[1]库存明细!$D:$H,5,0) -> 4 | E155: -4
A156: BODY2x6发块16 | B156: MC2*6BW16 | D156: =VLOOKUP(B:B,[1]库存明细!$D:$H,5,0) -> 9 | E156: -9
A157: BODY2x6发块18 | B157: MC2*6BW18 | D157: =VLOOKUP(B:B,[1]库存明细!$D:$H,5,0) -> 5 | E157: -5
A158: BODY2x6发块20 | B158: MC2*6BW20 | D158: =VLOOKUP(B:B,[1]库存明细!$D:$H,5,0) -> 14 | E158: -14
A159: BODY4*4三分发块8 | B159: TCBW8 | D159: =VLOOKUP(B:B,[1]库存明细!$D:$H,5,0) -> 4 | E159: -4
A160: BODY4*4三分发块10 | B160: TCBW10 | D160: =VLOOKUP(B:B,[1]库存明细!$D:$H,5,0) -> 10 | E160: -10
A161: BODY4*4三分发块12 | B161: TCBW12 | D161: =VLOOKUP(B:B,[1]库存明细!$D:$H,5,0) -> 9 | E161: -9
A162: BODY4*4三分发块14 | B162: TCBW14 | D162: =VLOOKUP(B:B,[1]库存明细!$D:$H,5,0) -> 8 | E162: -8
A163: BODY4*4三分发块16 | B163: TCBW16 | D163: =VLOOKUP(B:B,[1]库存明细!$D:$H,5,0) -> 19 | E163: -19
A164: BODY4*4三分发块18 | B164: TCBW18 | D164: =VLOOKUP(B:B,[1]库存明细!$D:$H,5,0) -> 10 | E164: -10
A165: BODY4*4三分发块20 | B165: TCBW20 | D165: =VLOOKUP(B:B,[1]库存明细!$D:$H,5,0) -> 5 | E165: -5
A166: 透明BODY4X4发块10 | B166: TRFCBW10 | D166: =VLOOKUP(B:B,[1]库存明细!$D:$H,5,0) -> 11 | E166: -11
A167: 透明BODY4X4发块12 | B167: TRFCBW12 | D167: =VLOOKUP(B:B,[1]库存明细!$D:$H,5,0) -> 14 | E167: -14
A168: 透明BODY4X4发块14 | B168: TRFCBW14 | D168: =VLOOKUP(B:B,[1]库存明细!$D:$H,5,0) -> 8 | E168: -8
A169: 透明BODY4X4发块16 | B169: TRFCBW16 | D169: =VLOOKUP(B:B,[1]库存明细!$D:$H,5,0) -> 23 | E169: -23
A170: 透明BODY4X4发块18 | B170: TRFCBW18 | D170: =VLOOKUP(B:B,[1]库存明细!$D:$H,5,0) -> 19 | E170: -19
A171: 透明BODY4X4发块20 | B171: TRFCBW20 | D171: =VLOOKUP(B:B,[1]库存明细!$D:$H,5,0) -> 10 | E171: -10
A172: 透明蕾丝 BODY5*5发块12 | B172: TRFC5*5BW12 | D172: =VLOOKUP(B:B,[1]库存明细!$D:$H,5,0) -> 8 | E172: -8
A173: 透明蕾丝 BODY5*5发块14 | B173: TRFC5*5BW14 | D173: =VLOOKUP(B:B,[1]库存明细!$D:$H,5,0) -> 9 | E173: -9
A174: 透明蕾丝 BODY5*5发块16 | B174: TRFC5*5BW16 | D174: =VLOOKUP(B:B,[1]库存明细!$D:$H,5,0) -> 12 | E174: -12
A175: 透明蕾丝 BODY5*5发块18 | B175: TRFC5*5BW18 | D175: =VLOOKUP(B:B,[1]库存明细!$D:$H,5,0) -> 10 | E175: -10
A176: 透明蕾丝 BODY5*5发块20 | B176: TRFC5*5BW20 | D176: =VLOOKUP(B:B,[1]库存明细!$D:$H,5,0) -> 7 | E176: -7
A177: 透明BODY蕾丝前头10 | B177: TRFROBW10 | D177: =VLOOKUP(B:B,[1]库存明细!$D:$H,5,0) -> 8 | E177: -8
A178: 透明BODY蕾丝前头12 | B178: TRFROBW12 | D178: =VLOOKUP(B:B,[1]库存明细!$D:$H,5,0) -> 6 | E178: -6
A179: 透明BODY蕾丝前头14 | B179: TRFROBW14 | D179: =VLOOKUP(B:B,[1]库存明细!$D:$H,5,0) -> 17 | E179: -17
A180: 透明BODY蕾丝前头16 | B180: TRFROBW16 | D180: =VLOOKUP(B:B,[1]库存明细!$D:$H,5,0) -> 13 | E180: -13
A181: 透明BODY蕾丝前头18 | B181: TRFROBW18 | D181: =VLOOKUP(B:B,[1]库存明细!$D:$H,5,0) -> 9 | E181: -9
A182: 透明BODY蕾丝前头20 | B182: TRFROBW20 | D182: =VLOOKUP(B:B,[1]库存明细!$D:$H,5,0) -> 9 | E182: -9
A183: DEEP4*4发块10 | B183: FCDEEP10 | D183: =VLOOKUP(B:B,[1]库存明细!$D:$H,5,0) -> 13 | E183: -13
A184: DEEP4*4发块12 | B184: FCDEEP12 | D184: =VLOOKUP(B:B,[1]库存明细!$D:$H,5,0) -> 26 | E184: -26
A185: DEEP4*4发块14 | B185: FCDEEP14 | D185: =VLOOKUP(B:B,[1]库存明细!$D:$H,5,0) -> 27 | E185: -27
A186: DEEP4*4发块16 | B186: FCDEEP16 | D186: =VLOOKUP(B:B,[1]库存明细!$D:$H,5,0) -> 22 | E186: -22
A187: DEEP4*4发块18 | B187: FCDEEP18 | D187: =VLOOKUP(B:B,[1]库存明细!$D:$H,5,0) -> 28 | E187: -28
A188: DEEP4*4发块20 | B188: FCDEEP20 | D188: =VLOOKUP(B:B,[1]库存明细!$D:$H,5,0) -> 14 | E188: -14
A189: DEEP中分发块10 | B189: MCDEEP10 | D189: =VLOOKUP(B:B,[1]库存明细!$D:$H,5,0) -> 10 | E189: -10
A190: DEEP中分发块12 | B190: MCDEEP12 | D190: =VLOOKUP(B:B,[1]库存明细!$D:$H,5,0) -> 10 | E190: -10
A191: DEEP中分发块14 | B191: MCDEEP14 | D191: =VLOOKUP(B:B,[1]库存明细!$D:$H,5,0) -> 23 | E191: -23
A192: DEEP中分发块16 | B192: MCDEEP16 | D192: =VLOOKUP(B:B,[1]库存明细!$D:$H,5,0) -> 8 | E192: -8
A193: DEEP中分发块18 | B193: MCDEEP18 | D193: =VLOOKUP(B:B,[1]库存明细!$D:$H,5,0) -> 16 | E193: -16
A194: DEEP中分发块20 | B194: MCDEEP20 | D194: =VLOOKUP(B:B,[1]库存明细!$D:$H,5,0) -> 14 | E194: =C194-D194 -> -14
A195: DEEP三分发块10 | B195: TCDEEP10 | D195: =VLOOKUP(B:B,[1]库存明细!$D:$H,5,0) -> 7 | E195: -7
A196: DEEP三分发块12 | B196: TCDEEP12 | D196: =VLOOKUP(B:B,[1]库存明细!$D:$H,5,0) -> 12 | E196: -12
A197: DEEP三分发块14 | B197: TCDEEP14 | D197: =VLOOKUP(B:B,[1]库存明细!$D:$H,5,0) -> 7 | E197: -7
A198: DEEP三分发块16 | B198: TCDEEP16 | D198: =VLOOKUP(B:B,[1]库存明细!$D:$H,5,0) -> 9 | E198: -9
A199: DEEP三分发块18 | B199: TCDEEP18 | D199: =VLOOKUP(B:B,[1]库存明细!$D:$H,5,0) -> 11 | E199: -11
A200: DEEP三分发块20 | B200: TCDEEP20 | D200: =VLOOKUP(B:B,[1]库存明细!$D:$H,5,0) -> 9 | E200: -9
... 526 more rows

Sheet 12.03
A1: 尺组合 | B1: 条码 | C1: 发货后发货仓库存清点 | D1: ERP库存
A2: 613直发4*4BOB头套8 | B2: 613STW4*4BOB8
A3: 613直发4*4BOB头套10 | B3: 613STW4*4BOB10
A4: 直条4x4发块8 | B4: FCSTW8
A5: 直条4x4发块10 | B5: FCSTW10
A6: 直条4x4发块12 | B6: FCSTW12
A7: 直条4x4发块14 | B7: FCSTW14
A8: 直条4x4发块16 | B8: FCSTW16
A9: 直条4x4发块18 | B9: FCSTW18
A10: 直条4x4发块20 | B10: FCSTW20
A11: 中分直条4x4发块8 | B11: MCSTW8
A12: 中分直条4x4发块10 | B12: MCSTW10
A13: 中分直条4x4发块12 | B13: MCSTW12
A14: 中分直条4x4发块14 | B14: MCSTW14
A15: 中分直条4x4发块16 | B15: MCSTW16
A16: 中分直条4x4发块18 | B16: MCSTW18
A17: 中分直条4x4发块20 | B17: MCSTW20
A18: 直条5x5发块10 | B18: FC5*5STW10
A19: 直条5x5发块12 | B19: FC5*5STW12
A20: 直条5x5发块14 | B20: FC5*5STW14
A21: 直条5x5发块16 | B21: FC5*5STW16
A22: 直条5x5发块18 | B22: FC5*5STW18
A23: 直条5x5发块20 | B23: FC5*5STW20
A24: 中分直条5x5发块10 | B24: MC5*5STW10
A25: 中分直条5x5发块12 | B25: MC5*5STW12
A26: 中分直条5x5发块14 | B26: MC5*5STW14
A27: 中分直条5x5发块16 | B27: MC5*5STW16
A28: 中分直条5x5发块18 | B28: MC5*5STW18
A29: 中分直条5x5发块20 | B29: MC5*5STW20
A30: 直条6*6自由分发块12 | B30: FC6*6STW12
A31: 直条6*6自由分发块14 | B31: FC6*6STW14
A32: 直条6*6自由分发块16 | B32: FC6*6STW16
A33: 直条6*6自由分发块18 | B33: FC6*6STW18
A34: 直条6*6自由分发块20 | B34: FC6*6STW20
A35: 中分直条6*6发块10 | B35: MC6*6STW10
A36: 中分直条6*6发块12 | B36: MC6*6STW12
A37: 中分直条6*6发块14 | B37: MC6*6STW14
A38: 中分直条6*6发块16 | B38: MC6*6STW16
A39: 中分直条6*6发块18 | B39: MC6*6STW18
A40: 中分直条6*6发块20 | B40: MC6*6STW20
A41: 直发蕾丝前头8 | B41: FROSTW8
A42: 直发蕾丝前头10 | B42: FROSTW10
A43: 直发蕾丝前头12 | B43: FROSTW12
A44: 直发蕾丝前头14 | B44: FROSTW14
A45: 直发蕾丝前头16 | B45: FROSTW16
A46: 直发蕾丝前头18 | B46: FROSTW18
A47: 直发蕾丝前头20 | B47: FROSTW20
A48: 直条13*6大前头10 | B48: FRO13*6STW10
A49: 直条13*6大前头12 | B49: FRO13*6STW12
A50: 直条13*6大前头14 | B50: FRO13*6STW14
A51: 直条13*6大前头16 | B51: FRO13*6STW16
A52: 直条13*6大前头18 | B52: FRO13*6STW18
A53: 直条13*6大前头20 | B53: FRO13*6STW20
A54: 直发单条8 | B54: STW8
A55: 直发单条10 | B55: STW10
A56: 直发单条12 | B56: STW12
A57: 直发单条14 | B57: STW14
A58: 直发单条16 | B58: STW16
A59: 直发单条18 | B59: STW18
A60: 直发单条20 | B60: STW20
A61: 直发单条22 | B61: STW22
A62: 直发单条24 | B62: STW24
A63: 直发单条26 | B63: STW26
A64: 直发单条28 | B64: STW28
A65: 直发单条30 | B65: STW30
A66: 直条2x6发块10 | B66: MC2*6STW10
A67: 直条2x6发块12 | B67: MC2*6STW12
A68: 直条2x6发块14 | B68: MC2*6STW14
A69: 直条2x6发块16 | B69: MC2*6STW16
A70: 直条2x6发块18 | B70: MC2*6STW18
A71: 直条2x6发块20 | B71: MC2*6STW20
A72: 直条4*4三分发块10 | B72: TCSTW10
A73: 直条4*4三分发块12 | B73: TCSTW12
A74: 直条4*4三分发块14 | B74: TCSTW14
A75: 直条4*4三分发块16 | B75: TCSTW16
A76: 直条4*4三分发块18 | B76: TCSTW18
A77: 直条4*4三分发块20 | B77: TCSTW20
A78: 透明直发蕾丝前头12 | B78: TRFROSTW12
A79: 透明直发蕾丝前头14 | B79: TRFROSTW14
A80: 透明直发蕾丝前头16 | B80: TRFROSTW16
A81: 透明直发蕾丝前头18 | B81: TRFROSTW18
A82: 透明直发蕾丝前头20 | B82: TRFROSTW20
A83: 透明直条4x4发块8 | B83: TRFCSTW8
A84: 透明直条4x4发块10 | B84: TRFCSTW10
A85: 透明直条4x4发块12 | B85: TRFCSTW12
A86: 透明直条4x4发块14 | B86: TRFCSTW14
A87: 透明直条4x4发块16 | B87: TRFCSTW16
A88: 透明直条4x4发块18 | B88: TRFCSTW18
A89: 透明直条4x4发块20 | B89: TRFCSTW20
A90: BODY4X4发块8 | B90: FCBW8
A91: BODY4X4发块10 | B91: FCBW10
A92: BODY4X4发块12 | B92: FCBW12
A93: BODY4X4发块14 | B93: FCBW14
A94: BODY4X4发块16 | B94: FCBW16
A95: BODY4X4发块18 | B95: FCBW18
A96: BODY4X4发块20 | B96: FCBW20
A97: 中分BODY4X4发块8 | B97: MCBW8
A98: 中分BODY4X4发块10 | B98: MCBW10
A99: 中分BODY4X4发块12 | B99: MCBW12
A100: 中分BODY4X4发块14 | B100: MCBW14
A101: 中分BODY4X4发块16 | B101: MCBW16
A102: 中分BODY4X4发块18 | B102: MCBW18
A103: 中分BODY4X4发块20 | B103: MCBW20
A104: BODY5X5发块10 | B104: FC5*5BW10
A105: BODY5X5发块12 | B105: FC5*5BW12
A106: BODY5X5发块14 | B106: FC5*5BW14
A107: BODY5X5发块16 | B107: FC5*5BW16
A108: BODY5X5发块18 | B108: FC5*5BW18
A109: BODY5X5发块20 | B109: FC5*5BW20
A110: BODY5*5中分发块10 | B110: MC5*5BW10
A111: BODY5*5中分发块12 | B111: MC5*5BW12
A112: BODY5*5中分发块14 | B112: MC5*5BW14
A113: BODY5*5中分发块16 | B113: MC5*5BW16
A114: BODY5*5中分发块18 | B114: MC5*5BW18
A115: BODY5*5中分发块20 | B115: MC5*5BW20
A116: BODY6*6自由分发块10 | B116: FC6*6BW10
A117: BODY6*6自由分发块12 | B117: FC6*6BW12
A118: BODY6*6自由分发块14 | B118: FC6*6BW14
A119: BODY6*6自由分发块16 | B119: FC6*6BW16
A120: BODY6*6自由分发块18 | B120: FC6*6BW18
A121: BODY6*6自由分发块20 | B121: FC6*6BW20
A122: 中分BODY6*6发块10 | B122: MC6*6BW10
A123: 中分BODY6*6发块12 | B123: MC6*6BW12
A124: 中分BODY6*6发块14 | B124: MC6*6BW14
A125: 中分BODY6*6发块16 | B125: MC6*6BW16
A126: 中分BODY6*6发块18 | B126: MC6*6BW18
A127: 中分BODY6*6发块20 | B127: MC6*6BW20
A128: BODY蕾丝前头8 | B128: FROBW8
A129: BODY蕾丝前头10 | B129: FROBW10
A130: BODY蕾丝前头12 | B130: FROBW12
A131: BODY蕾丝前头14 | B131: FROBW14
A132: BODY蕾丝前头16 | B132: FROBW16
A133: BODY蕾丝前头18 | B133: FROBW18
A134: BODY蕾丝前头20 | B134: FROBW20
A135: BODY13*6大前头10 | B135: FRO13*6BW10
A136: BODY13*6大前头12 | B136: FRO13*6BW12
A137: BODY13*6大前头14 | B137: FRO13*6BW14
A138: BODY13*6大前头16 | B138: FRO13*6BW16
A139: BODY13*6大前头18 | B139: FRO13*6BW18
A140: BODY13*6大前头20 | B140: FRO13*6BW20
A141: BODY单条8 | B141: BODY8
A142: BODY单条10 | B142: BODY10
A143: BODY单条12 | B143: BODY12
A144: BODY单条14 | B144: BODY14
A145: BODY单条16 | B145: BODY16
A146: BODY单条18 | B146: BODY18
A147: BODY单条20 | B147: BODY20
A148: BODY单条22 | B148: BODY22
A149: BODY单条24 | B149: BODY24
A150: BODY单条26 | B150: BODY26
A151: BODY单条28 | B151: BODY28
A152: BODY单条30 | B152: BODY30
A153: BODY2x6发块10 | B153: MC2*6BW10
A154: BODY2x6发块12 | B154: MC2*6BW12
A155: BODY2x6发块14 | B155: MC2*6BW14
A156: BODY2x6发块16 | B156: MC2*6BW16
A157: BODY2x6发块18 | B157: MC2*6BW18
A158: BODY2x6发块20 | B158: MC2*6BW20
A159: BODY4*4三分发块8 | B159: TCBW8
A160: BODY4*4三分发块10 | B160: TCBW10
A161: BODY4*4三分发块12 | B161: TCBW12
A162: BODY4*4三分发块14 | B162: TCBW14
A163: BODY4*4三分发块16 | B163: TCBW16
A164: BODY4*4三分发块18 | B164: TCBW18
A165: BODY4*4三分发块20 | B165: TCBW20
A166: 透明BODY4X4发块10 | B166: TRFCBW10
A167: 透明BODY4X4发块12 | B167: TRFCBW12
A168: 透明BODY4X4发块14 | B168: TRFCBW14
A169: 透明BODY4X4发块16 | B169: TRFCBW16
A170: 透明BODY4X4发块18 | B170: TRFCBW18
A171: 透明BODY4X4发块20 | B171: TRFCBW20
A172: 透明蕾丝 BODY5*5发块12 | B172: TRFC5*5BW12
A173: 透明蕾丝 BODY5*5发块14 | B173: TRFC5*5BW14
A174: 透明蕾丝 BODY5*5发块16 | B174: TRFC5*5BW16
A175: 透明蕾丝 BODY5*5发块18 | B175: TRFC5*5BW18
A176: 透明蕾丝 BODY5*5发块20 | B176: TRFC5*5BW20
A177: 透明BODY蕾丝前头10 | B177: TRFROBW10
A178: 透明BODY蕾丝前头12 | B178: TRFROBW12
A179: 透明BODY蕾丝前头14 | B179: TRFROBW14
A180: 透明BODY蕾丝前头16 | B180: TRFROBW16
A181: 透明BODY蕾丝前头18 | B181: TRFROBW18
A182: 透明BODY蕾丝前头20 | B182: TRFROBW20
A183: DEEP4*4发块10 | B183: FCDEEP10
A184: DEEP4*4发块12 | B184: FCDEEP12
A185: DEEP4*4发块14 | B185: FCDEEP14
A186: DEEP4*4发块16 | B186: FCDEEP16
A187: DEEP4*4发块18 | B187: FCDEEP18
A188: DEEP4*4发块20 | B188: FCDEEP20
A189: DEEP中分发块10 | B189: MCDEEP10
A190: DEEP中分发块12 | B190: MCDEEP12
A191: DEEP中分发块14 | B191: MCDEEP14
A192: DEEP中分发块16 | B192: MCDEEP16
A193: DEEP中分发块18 | B193: MCDEEP18
A194: DEEP中分发块20 | B194: MCDEEP20
A195: DEEP三分发块10 | B195: TCDEEP10
A196: DEEP三分发块12 | B196: TCDEEP12
A197: DEEP三分发块14 | B197: TCDEEP14
A198: DEEP三分发块16 | B198: TCDEEP16
A199: DEEP三分发块18 | B199: TCDEEP18
A200: DEEP三分发块20 | B200: TCDEEP20
... 383 more rows
